{"text_format":"2","workbook":"xlsx","n_sheets":7,"sheets":["1-Kit_Irrig_MICRO-2ha_TO_Preço","2-Kit_Irrig_ASPER-3ha_TO_Preço","3-Poço-2cv-21mca-TO_Preço","4-Poço-3cv-28mca-TO_Preço","5-Poço-5,5cv-56mca-TO_Preço","6-Poço-7,5cv-85mca-TO_Preço","7-Fotovoltaica-TO_Preço"],"not_rendered":{"charts":0,"images":1,"macros":0,"external_links":0,"defined_names":0,"comments":0,"pivot_tables":0},"unopened":[],"bounds":{"document_bytes":16777216,"sheet_cells":100000,"run_cost":"one","rows_first":2000,"rows_last":500,"rows_between":2000,"halvings":0,"cell_chars":16384,"cell_head_chars":4096},"cells_cut":0,"cells_raw":0,"read":"whole","date_system":"1900"}

{"sheet":"1-Kit_Irrig_MICRO-2ha_TO_Preço","index":0,"n_rows":137,"n_cols":6,"rows_kept":137,"cut":false,"hidden":false,"merged":[[5,0,5,5],[6,0,6,5],[7,0,7,5],[8,0,8,5],[130,0,130,5],[10,0,11,0],[10,1,11,1],[10,2,11,2],[10,3,11,3],[10,4,10,5],[135,0,135,4],[136,0,136,4],[12,0,12,5],[65,0,65,4],[66,0,66,5],[69,0,69,4],[70,0,70,5],[129,0,129,4],[71,0,71,5],[103,0,103,5],[116,0,116,5]]}
[null,"                                          MINISTÉRIO DA INTEGRAÇÃO E DO DESENVOLVIMENTO REGIONAL (MIDR)"]
[null,"                                          COMPANHIA DO DESENVOLVIMENTO DOS VALES DO SÃO FRANCISCO E DO PARNAÍBA"]
[null,"                                          ÁREA DE IRRIGAÇÃO E OPERAÇÕES (AI)"]
[]
[]
["PLANILHA ORÇAMENTÁRIA"]
["SISTEMA DE IRRIGAÇÃO - TIPO MICROASPERSÃO - 2 ha "]
["MATERIAIS, EQUIPAMENTOS E SERVIÇOS"]
[]
[]
["ITEM","DESCRIÇÃO DO MATERIAL","UNID.","QUANT.","VALOR DA PROPOSTA"]
[{"$nulls":4},"PREÇO UNITÁRIO (R$)","TOTAL (R$)"]
["MATERIAL HIDRÁULICO - A"]
[{"$f":"1","v":1},"Microaspersor anti-inseto de vazão maior que 65 l/h para uma pressão de serviço 15 m.c.a. completo: haste, 1,5 m de microtubo DN 7 mm e conector compatível material com proteção contra oxidação e U.V. (garantia de 5 anos)","und.",700,null,{"$f":"D14*E14","v":0}]
[{"$f":"A14+1","v":2},"Tubo de PELBD de diâmetro nominal mínimo 20 mm e PN30 com espessura mínima de 1mm e tratamento contra  U.V. e oxidação. Garantia 5 anos.","metro",2700,null,{"$f":"D15*E15","v":0}]
[{"$f":"A15+1","v":3},"Tubo de PVC DN 50mm irriga LF PN 40 (Garantia 3 anos)","peça de 6m",43,null,0]
[4,"Tubo de PVC DN 35mm irriga LF PN 40 (Garantia 3 anos)","peça de 6m",58,null,0]
[5,"Conector inicial  PELBD de 20mm para PVC","und.",56,null,0]
[6,"Anel de retenção (chula) para conector inicial de 20 mm para PVC","und.",56,null,0]
[7,"Final de linha para PELBD de 20mm (tipo 8)","und.",56,null,0]
[8,"Cap soldável  de 35 mm para PVC irriga LF","und.",16,null,0]
[9,"Redução  Soldável Irriga LF de 50 para 35mm ","und.",16,null,0]
[10,"Tê de PVC soldável Irriga LF de 50mm","und.",15,null,0]
[11,"Tê de Redução PVC soldável Irriga LF DN 50 x 3/4'","und.",11,null,0]
[12,"Joelho 90º Soldável (agro) DN50","und.",30,null,0]
[13,"curva 90º Soldável LF irriga  DN50","und.",3,null,0]
[14,"Registro de esfera PVC soldável de 50mm irriga","und.",12,null,0]
[15,"Adesivo plástico extraforte para PVC , pote de 850g","und.",2,null,0]
[16,"Solução Limpadora para PVC, frasco de 1 litro","und.",2,null,0]
[17,"Lixa d'água n.º 120, folha de 30 cm","und.",15,null,0]
[18,"Estopa de limpeza","kg",2,null,0]
[19,"Fita veda rosca de 18 mm","5 m",1,null,0]
[20,"Adaptador Redução Bsa Sold 50mm x 1\" (irriga)","und.",1,null,0]
[21,"Adaptador Bsa Sold 50mm x 2\" (irriga)","und.",6,null,0]
[22,"Registro de gaveta de 2 pol.","und.",1,null,0]
[23,"Adaptador espigão  rosca 2\" ","und.",1,null,0]
[24,"Bucha de redução de 3/4 pol. para 1/4 pol.","und.",2,null,0]
[25,"Manômetro de glicerina de até 6 kgf/cm2 rosca de 1/4 pol.","und.",2,null,0]
[26,"Mangote de sucção de 2 pol.","metro",5,null,0]
[27,"Válvula ventosa dupla função de 3/4' com proteção UV e oxidação.","und.",8,null,0]
[28,"Válvula ventosa combinada/tríplice função DN 3/4' rosca macho. Faixa de pressão operacional – 1 a 100 mca.","und.",1,null,0]
[29,"Valvula de pé com crivo de 2 pol. em latão","und.",1,null,0]
[30,"Abraçadeira Inox tipo T-clamp para Mangotes 2\"","und.",2,null,0]
[31,"Luva de redução concêntrica de 2 pol.  para 1 ½ pol.","und.",1,null,0]
[32,"Furador de mangueira PELBD para encaixe de conector do microtubo","und.",1,null,0]
[33,"Filtro de disco, mínimo 80 mesh  (0,178mm) para vazão igual ou maior que 15m³/h  DN 2\".","und.",2,null,0]
[34,"Adaptador curto (agro) DN32 para 1 pol.","und.",6,null,0]
[35,"Joelho 90º Soldável (agro) DN32","und.",5,null,0]
[36,"Kit injetor venturi de 1pol. com mangueira e filtro de entrada do fertilizante","und.",1,null,0]
[37,"Registro de esfera PVC soldável de 32mm irriga","und.",3,null,0]
[38,"Tubo de PVC DN 32mm (agro) PN 60.","metro",6,null,0]
[39,"Tê de PVC soldável  de 32mm","und.",3,null,0]
[40,"Cap de PVC soldável de 32mm","und.",3,null,0]
[41,"Caixa d'água com tampa de polietileno de 500 litros","und.",1,null,0]
[42,"Luva de redução soldável irriga DN 75x 32","und.",1,null,0]
[43,"União soldável de 32mm (agro)","und.",2,null,0]
[44,"Motobomba booster para fertirrigação de até  1/3 cv  de 220v (monofásico-fase/neutro); classe de isolamento B; IP55, partida direta; com regime de serviço contínuo, com as  características de vazão de mais de 6,1 m³/h para uma altura manométrica mínima de 10 m.c.a. (Garantia mínima de 2 anos), shut-off < 20 m.c.a..","und.",1,null,0]
[45,"Motobomba: de motor de 2 CV de 220v (monofásico-fase/neutro); classe de isolamento B, IP55; partida direta; com regime de serviço contínuo, com bomba com as características de vazão maior que 6 m³/h para uma altura manométrica de 38 m.c.a com eficiência mínima de 50%.  Sucção de 1 ½ pol. e recalque de 1 pol. Shut-off < 45m.c.a. (Garantia mínima de 2 anos).","und.",1,null,0]
[46,"Cimento Portland CP II saco de 25 kg","und.",1,null,0]
[47,"Areia lavada saco de 10 kg","und.",5,null,0]
[48,"Brita 0 ou pedrisco saco de 20 kg","und.",4,null,0]
[49,"Estaca de 2,2m eucalipto tratado de 08 a 10 cm de espessura","und.",3,null,0]
[50,"Parafusos sextavado de fixação em concreto p/ as motobombas","und.",8,null,0]
[51,"Arame galvanizado BWG 14 (2,10mm Ø) 37m/kg","kg",1,null,0]
[52,"Prancha de cambará ou maçaranduba ou similar de espessura mínima de 3,5 cm; largura de 15 cm e comprimento mínimo de 3m. ","und.",1,null,0]
["Subtotal-A (MATERIAL HIDRÁULICO)",{"$nulls":4},{"$f":"SUM(F14:F65)","v":0}]
["MONTAGEM-PARTE HIDRÁULICA - B"]
[{"$f":"53","v":53},"Escavação, regularização do fundo da vala e reaterro com material original isento de pedra e raizes para assentamento de tubulação de PVC com profundidade nunca inferior a 40 cm.","m³",{"$f":"25.8","v":25.8},null,{"$f":"D68*E68","v":0}]
[{"$f":"A68+1","v":54},"Mão de obra de instalação","ha ",{"$f":"2","v":2},null,0]
["Subtotal-B (MONTAGEM - PARTE HIDRÁULICA)",{"$nulls":4},{"$f":"SUM(F68:F69)","v":0}]
["MATERIAL ELÉTRICO - C"]
["QUADRO DE COMANDO"]
[{"$f":"55","v":55},"Quadro elétrico metálico com placa de montagem, grau de proteção mínimo IP54, dimensões mínimas 400x300x200 mm","Unidade",1,null,{"$f":"D73*E73","v":0}]
[{"$f":"A73+1","v":56},"Canaleta para quadro 30 x 50 mm, fabricada em PVC, tipo semi-aberta.","Metro",0.5,null,0]
[{"$f":"A74+1","v":57},"Canaleta para quadro 50 x 50 mm, fabricada em PVC, tipo semi-aberta.","Metro",0.3,null,0]
[58,"Trilho DIN 35 mm","Metro",0.4,null,0]
[59,"Conector (terminal isolado) para barramento isolado, conexão reta ou lateral, até 25 mm²","Unidade",2,null,0]
[60,"Barramento monofásico isolado (barramento pente), horizontal, fabricado em cobre, até 63 A, acompanhado de tampas finais, 8 polos","Unidade",1,null,0]
[61,"Interruptor diferencial residual bipolar de 25A, corrente residual de 30 mA, tensão de operação 380 V, corrente de curto circuito de 6 kA","Unidade",1,null,0]
[62,"Dispositivo de Proteção Contra Surtos Classe II, 20 kA (Imáx), tensão de operação compatível com a aplicação, nível de proeção (Up) 1,4 kV ","Unidade",2,null,0]
[63,"Disjuntor monopolar para trilho DIN (mini disjuntor) para correntes de 25A, curva C, 60 Hz, capacidade de interrupção em curto-circuito 3 kA ou superior","Unidade",1,null,0]
[64,"Disjuntor monopolar para trilho DIN (mini disjuntor) para correntes de 16A, curva C, 60 Hz, capacidade de interrupção em curto-circuito 3 kA ou superior","Unidade",1,null,0]
[65,"Disjuntor monopolar para trilho DIN (mini disjuntor) para correntes de 10A, curva C, 60 Hz, capacidade de interrupção em curto-circuito 3 kA ou superior","Unidade",1,null,0]
[66,"Disjuntor monopolar para trilho DIN (mini disjuntor) para correntes de 6A, curva C, 60 Hz, capacidade de interrupção em curto-circuito 3 kA ou superior","Unidade",2,null,0]
[67,"Minicontator, com capacidade de corrente até 7A (em regime AC-3), contato auxiliar integrado e bobina em corrente alternada (220 V)","Unidade",1,null,0]
[68,"Minicontator, com capacidade de corrente até 12A (em regime AC-3), contato auxiliar integrado e bobina em corrente alternada (220 V)","Unidade",1,null,0]
[69,"Contato auxiliar NA para contator","Unidade",1,null,0]
[70,"Relé de sobrecarga para minicontator ajustável até 12,5A, conforme aplicação, com montagem direta nos contatores","Unidade",1,null,0]
[71,"Relé de sobrecarga para minicontator ajustável até 6,3A, conforme aplicação, com montagem direta nos contatores","Unidade",1,null,0]
[72,"Relé eletrônico/digital monitor de tensão monofásico, com funcionalidade de subtensão e sobretensão, ajustes através de trimpot no relé, LED indicativo de funcionamento, 220 V, 60 Hz, com 2 contatos reversíveis","Unidade",1,null,0]
[73,"Relé temporizador, alimentação 220V, 1 saída a relé, com função de pulso na energização, ajustável de 1 segundo a 100 horas, ajuste por trimpots no relé","Unidade",1,null,0]
[74,"Barramento de neutro, na cor azul, para fixação em trilho DIN, fabricado em cobre, com furos e parafusos para fixação, ao menos um furo para o alimentador (até 25 mm²), pré isolado, 10 furos.","Unidade",1,null,0]
[75,"Barramento de terra, na cor verde, para fixação em trilho DIN, fabricado em cobre, com furos e parafusos para fixação, ao menos um furo para o alimentador (até 25 mm²), pré isolado, 10 furos.","Unidade",1,null,0]
[76,"Botão de emergência tipo cogumelo, com trava e retorno com mola, para furos 22mm, 1 NF, 220V, vermelho","Unidade",1,null,0]
[77,"Chave seletora de 3 posições para furos 22mm, 2 NA, completa, 220V","Unidade",2,null,0]
[78,"Sinalizador luminoso para furos de 22 mm, iluminação LED, vermelho, 220V","Unidade",2,null,0]
[79,"Policarbonato compacto, incolor (transparente/cristal), livre de rebarbas, espessura mínima de 2 mm","Metro²",0.24,null,0]
[80,"Barra roscada 1/4\", acabamento zincado","Metro",1,null,0]
[81,"Porca sextavada zincada, 1/4\"","Unidade",16,null,0]
[82,"Arruela zincada, 1/4\"","Unidade",16,null,0]
[83,"Placa de identificação (plaqueta de identificação) fabricada em ABS ou acrílico para painéis elétricos, fixação por adesivo, expessura mínima de 1,5 mmm resistente ao tempo, formato conforme aplicação","cm²",300,null,0]
[84,"Terminal a compressão, tipo pino ou garfo, 2,5 mm³","Unidade",50,null,0]
[85,"Abraçadeira de naylon 2,5x100 mm, para organização cabos elétricos","Unidade",10,null,0]
["ALIMENTAÇÃO DO QUADRO E ATERRAMENTO"]
[{"$f":"86","v":86},"Cabo de cobre flexível, classe 4 ou 5, isolação em HEPR, cobertura em PVC-ST2, antichama BWF-B, 0,6/1 kV, seção de 16 mm² (cor preta)","Metro",100,null,0]
[{"$f":"A105+1","v":87},"Cabo de cobre flexível, classe 4 ou 5, isolação em HEPR, cobertura em PVC-ST2, antichama BWF-B, 0,6/1 kV, seção de 16 mm² (azul)","Metro",100,null,0]
[{"$f":"A106+1","v":88},"Cabo de cobre flexível, classe 4 ou 5, isolação em HEPR, cobertura em PVC-ST2, antichama BWF-B, 0,6/1 kV, seção de 16 mm² (verde)","Metro",100,null,0]
[89,"Terminal a compressão, tipo pino, 16 mm²","Unidade",6,null,0]
[90,"Eletroduto corrugado tipo PEAD, 1.1/2\"","Metro",100,null,0]
[91,"Caixa de passagem em concreto 40x40x70 cm","Unidade",5,null,0]
[92,"Cordoalha em cobre nu, 50 mm²","Metro",20,null,0]
[93,"Conector á compressão para aterramento (CABO-CABO)","Unidade",2,null,0]
[94,"Curva longa 90º Galvanizada a fogo, 1.1/2\"","Unidade",1,null,0]
[95,"Eletroduto Galvanizado a Fogo, 1.1/2\"","Metro",1.5,null,0]
[96,"Abraçadeira tipo D, 1 1/2\" e cunha de fixação","Unidade",1,null,0]
[97,"Conector reto com arruela para eletroduto 1.1/2\"","Unidade",1,null,0]
["ALIMENTAÇÃO DOS MOTORES"]
[{"$f":"98","v":98},"Cabo de cobre flexível, classe 4 ou 5, isolação em HEPR, cobertura em PVC-ST2, antichama BWF-B, 0,6/1 kV, seção de 2,5 mm² (cor preta)","Metro",15,null,0]
[{"$f":"A118+1","v":99},"Cabo de cobre flexível, classe 4 ou 5, isolação em HEPR, cobertura em PVC-ST2, antichama BWF-B, 0,6/1 kV, seção de 2,5 mm² (azul)","Metro",15,null,0]
[{"$f":"A119+1","v":100},"Cabo de cobre flexível, classe 4 ou 5, isolação em HEPR, cobertura em PVC-ST2, antichama BWF-B, 0,6/1 kV, seção de 2,5 mm² (verde)","Metro",15,null,0]
[101,"Terminal a compressão, tipo pino, 2,5 mm²","Unidade",6,null,0]
[102,"Eletroduto corrugado tipo PEAD, 3/4\"","Metro",10,null,0]
[103,"Caixa de passagem em concreto 30X30X40 cm","Unidade",5,null,0]
[104,"Eletroduto Galvanizado a Fogo, 3/4\"","Metro",1.5,null,0]
[105,"Conector reto com arruela para eletroduto 3/4\"","Unidade",4,null,0]
[106,"Condulete em Alumínio 3/4\"","Unidade",2,null,0]
[107,"Abraçadeira tipo D, 3/4\" e cunha de fixação","Unidade",1,null,0]
[108,"Tampa cega em alumínio para condulete 3/4\"","Unidade",2,null,0]
[109,"Eletroduto metálico flexível com cobertura em PVC (copex)","Metro",5,null,0]
["Subtotal-C (MATERIAL ELÉTRICO)",{"$nulls":4},{"$f":"SUM(F73:F129)","v":0}]
["MONTAGEM-PARTE ELÉTRICA - D"]
[{"$f":"110","v":110},"Escavação, regularização do fundo da vala e reaterro com material original isento de pedra e raizes para assentamento de tubo corrugado de passagem elétrica com profundidade conforme NBR 5410","M³",15.4,null,{"$f":"D132*E132","v":0}]
[{"$f":"A132+1","v":111},"ELETROTÉCNICO COM ENCARGOS COMPLEMENTARES","H",4,null,0]
[{"$f":"A133+1","v":112},"ELETRICISTA COM ENCARGOS COMPLEMENTARES","H",8,null,0]
[113,"AUXILIAR DE ELETRICISTA COM ENCARGOS COMPLEMENTARES","H",12,null,0]
["Subtotal-D (MONTAGEM - PARTE ELÉTRICA)",{"$nulls":4},{"$f":"SUM(F132:F135)","v":0}]
["Total (Subtotal-A + Subtotal-B + Subtotal-C+ Subtotal-D))",{"$nulls":4},{"$f":"F66+F70+F130+F136","v":0}]

{"sheet":"2-Kit_Irrig_ASPER-3ha_TO_Preço","index":1,"n_rows":133,"n_cols":6,"rows_kept":133,"cut":false,"hidden":false,"merged":[[5,0,5,5],[6,0,6,5],[7,0,7,5],[8,0,8,5],[126,0,126,5],[10,0,11,0],[10,1,11,1],[10,2,11,2],[10,3,11,3],[10,4,10,5],[66,0,66,5],[100,0,100,5],[113,0,113,5],[131,0,131,4],[132,0,132,4],[12,0,12,5],[60,0,60,4],[61,0,61,5],[64,0,64,4],[65,0,65,5],[125,0,125,4]]}
[null,"                                          MINISTÉRIO DA INTEGRAÇÃO E DO DESENVOLVIMENTO REGIONAL (MIDR)"]
[null,"                                          COMPANHIA DO DESENVOLVIMENTO DOS VALES DO SÃO FRANCISCO E DO PARNAÍBA"]
[null,"                                          ÁREA DE IRRIGAÇÃO E OPERAÇÕES (AI)"]
[]
[]
["PLANILHA ORÇAMENTÁRIA"]
["SISTEMA DE IRRIGAÇÃO - TIPO ASPERSÃO FIXA (3 ha)"]
["MATERIAIS, EQUIPAMENTOS E SERVIÇOS"]
["REF. ESPAÇAMENTO: 10,7 x 12,5 (134 m² ou 224 emissores)"]
[]
["ITEM","DESCRIÇÃO DO MATERIAL","UNID.","QUANT.","VALOR DA PROPOSTA"]
[{"$nulls":4},"PREÇO UNITÁRIO (R$)","TOTAL (R$)"]
["MATERIAL HIDRÁULICO - A"]
[{"$f":"1","v":1},"Aspersor de impacto com bocais de diâmetro aprox. de 2,5 mm com vazão aproximadamente 540 l/h para uma pressão de serviço não superior à de 22 m.c.a., com raio mínimo de alcance de 12 metros, conexão fêmea de 3/4. Coeficiente de variação de fabricação (CVf) inferior a 5% com proteção contra oxidação e U.V. (garantia mínima 3 anos) atendendo a ABNT NBR 15886-1.","und.",240,null,{"$f":"D14*E14","v":0}]
[{"$f":"A14+1","v":2},"Tubo de PELBD de diâmetro nominal mínimo 16 mm e PN30 (tratamento contra  U.V. e oxidação). Garantia 5 anos.","metro",450,null,{"$f":"D15*E15","v":0}]
[{"$f":"A15+1","v":3},"Tubo de PVC DN 25 mm irriga LF PN 80 (Garantia 3 anos)","peça de 6m",4,null,0]
[4,"Tubo de PVC DN 35 mm irriga LF PN 40 (Garantia 3 anos)","peça de 6m",350,null,0]
[5,"Tubo de PVC DN 50mm irriga LF PN 40 (Garantia 3 anos)","peça de 6m",51,null,0]
[6,"Tubo de PVC DN 75 mm irriga LF PN 40 (Garantia 3 anos)","peça de 6m",50,null,0]
[7,"Conector inicial  PELBD de 16 mm para PVC","und.",240,null,0]
[8,"Anel de retenção (chula) para conector inicial de 16 mm para PVC","und.",224,null,0]
[9,"Conector inicial rosca(macho) 3/4 x  Pelbd 16mm (normatizado, com prot. UV e oxidação)","und.",224,null,0]
[10,"Cap soldável  de 35 mm para PVC irriga LF","und.",32,null,0]
[11,"Joelho Irriga Soldável 90° Irrigação DN50","und.",17,null,0]
[12,"Joelho Irriga Soldável 90° Irrigação DN75","und.",35,null,0]
[13,"Redução PVC soldável  irriga (azul) DN 50x35mm","und.",32,null,0]
[14,"Redução PVC soldável  irriga (azul) DN 75x50mm","und.",17,null,0]
[15,"Tê de PVC soldável Irriga LF DN 50 ","und.",16,null,0]
[16,"Tê de PVC soldável Irriga LF DN 75","und.",16,null,0]
[17,"Tê de Redução PVC soldável Irriga LF DN 50 x 3/4'","und.",1,null,0]
[18,"Tê de Redução PVC soldável Irriga LF DN 75x25 mm","und.",8,null,0]
[19,"Luva DN 25x3/4' soldável com bucha em latão","und.",8,null,0]
[20,"Registro de esfera PVC de irrigação soldável de 75 mm ","und.",8,null,0]
[21,"Adesivo plástico extraforte para PVC , pote de 850g","und.",2,null,0]
[22,"Solução Limpadora para PVC, frasco de 1 litro","und.",2,null,0]
[23,"Lixa d'água n.º 120, folha de 30 cm","und.",15,null,0]
[24,"Estopa de limpeza","kg",1,null,0]
[25,"Fita veda rosca de 18 mm","50 m",1,null,0]
[26,"Adaptador BS x RM Curto Irriga LF 50mm para 2 pol.","und.",4,null,0]
[27,"Registro de gaveta bruto em latão de 2 pol.","und.",1,null,0]
[28,"Bucha de redução de 3/4 pol. para 1/4 pol.","und.",1,null,0]
[29,"Manômetro de glicerina de até 6 kgf/cm2 rosca de 1/4 pol.","und.",1,null,0]
[30,"Adaptador espigão de PEAD para irrigação ou ferro fundido,  rosca externa de 2'","und.",1,null,0]
[31,"Mangote de sucção de 2 pol.","metro",5,null,0]
[32,"Válvula de pé com crivo de 2 pol.","und.",1,null,0]
[33,"Abraçadeira Inox tipo T-clamp para Mangotes 2\"","und.",2,null,0]
[34,"Joelho Soldavel 90° Irrigação DN50","und.",40,null,0]
[35,"Luva PVC Mista Solda X Rosca 50mm X 2' Irriga","und.",4,null,0]
[36,"Curva 90º Soldável LF irriga  DN50","und.",3,null,0]
[37,"Válvula ventosa dupla função de 3/4' com proteção UV e oxidação.","und.",8,null,0]
[38,"Motobomba: de motor de 4cv de 220v (monofásico-fase/neutro); classe de isolamento B, IP55; partida direta; com regime de serviço contínuo, com bomba com as caracteristicas de vazão de 15,2 m³/h para uma altura manométrica de 39 m.c.a com eficiência mínima de 60%.  Sucção e recalque com 2'. (Garantia mínima de 5 anos)","und.",1,null,0]
[39,"Arame Macio Zincado  BWG 18 1,24mm 105,36m/kg","kg",2,null,0]
[40,"Estaca de eucalipto tratado com 2,20 m de comprimento e, entre 4 a 6cm de diâmetro","und.",224,null,0]
[41,"Cimento Portland CP II saco de 25 kg","und.",{"$f":"0.5","v":0.5},null,0]
[42,"Areia lavada saco de 10 kg","und.",3,null,0]
[43,"Brita 0 ou pedrisco saco de 20 kg","und.",2,null,0]
[44,"Estaca de 2,2m eucalipto tratado de 08 a 10 cm de espessura","und.",1,null,0]
[45,"Parafusos sextavado de fixação em concreto p/ as motobombas","und.",4,null,0]
[46,"Arame galvanizado BWG 14 (2,10mm Ø) 37m/kg","kg",1,null,0]
[47,"Prancha de cambará ou maçaranduba ou similar de espessura mínima de 3,5 cm; largura de 15 cm e comprimento mínimo de 3m. ","und.",1,null,0]
["Subtotal-A (MATERIAL HIDRÁULICO)",{"$nulls":4},{"$f":"SUM(F14:F60)","v":0}]
["MONTAGEM-PARTE HIDRÁULICA - B"]
[{"$f":"48","v":48},"Escavação, regularização do fundo da vala e reaterro com material original isento de pedra e raizes para assentamento de tubulação de PVC com profundidade nunca inferior a 40 cm.","m³",{"$f":"40","v":40},null,{"$f":"D63*E63","v":0}]
[{"$f":"A63+1","v":49},"Mão de obra de instalação","ha ",{"$f":"3","v":3},null,0]
["Subtotal-B (MONTAGEM - PARTE HIDRÁULICA)",{"$nulls":4},{"$f":"SUM(F63:F64)","v":0}]
["MATERIAL ELÉTRICO - C"]
["QUADRO DE COMANDO"]
[{"$f":"50","v":50},"Quadro elétrico metálico com placa de montagem, grau de proteção mínimo IP54, dimensões mínimas 600x400x200 mm","Unidade",1,null,{"$f":"D68*E68","v":0}]
[{"$f":"A68+1","v":51},"Canaleta para quadro 30 x 50 mm, fabricada em PVC, tipo semi-aberta.","Metro",1.4,null,0]
[{"$f":"A69+1","v":52},"Canaleta para quadro 50 x 50 mm, fabricada em PVC, tipo semi-aberta.","Metro",0.8,null,0]
[53,"Trilho DIN 35 mm","Metro",0.75,null,0]
[54,"Conector (terminal isolado) para barramento isolado, conexão reta ou lateral, até 25 mm²","Unidade",7,null,0]
[55,"Barramento monofásico isolado (barramento pente), horizontal, fabricado em cobre, até 63 A, acompanhado de tampas finais, 8 polos","Unidade",0.5,null,0]
[56,"Barramento trifásico isolado (barramento pente), fabricado em cobre, até 63 A, acompanhado de tampas finais, 9 polos","Unidade",2,null,0]
[57,"Protetor pino para barramento isolado, para proteção de polos não utilizados","Unidade",3,null,0]
[58,"Interruptor diferencial residual tetrapolar de\n40A, corrente residual de 30 mA, tensão de operação 380 V, corrente de curto circuito de 6 kA","Unidade",1,null,0]
[59,"Dispositivo de Proteção Contra Surtos Classe\nII, 20 kA (Imáx), tensão de operação compatível com a aplicação, nível de proeção (Up) 1,4 kV ","Unidade",4,null,0]
[60,"Disjuntor tripolar para trilho DIN (mini disjuntor) para correntes de 32A, curva C, 60 Hz, capacidade de interrupção em curto-circuito 4,5 kA ou superior","Unidade",1,null,0]
[61,"Disjuntor tripolar para trilho DIN (mini disjuntor) para correntes de 10A, curva C, 60 Hz, capacidade de interrupção em curto-circuito 4,5 kA ou superior","Unidade",1,null,0]
[62,"Disjuntor monopolar para trilho DIN (mini disjuntor) para correntes de 6A, curva C, 60 Hz, capacidade de interrupção em curto-circuito 3 kA ou superior","Unidade",2,null,0]
[63,"Disjuntor monopolar para trilho DIN (mini disjuntor) para correntes de 10A, curva C, 60 Hz, capacidade de interrupção em curto-circuito 3 kA ou superior","Unidade",1,null,0]
[64,"Minicontator, com capacidade de corrente até 10A (em reima AC-3), contato auxiliar integrado e bobina em corrente alternada (220 V)","Unidade",1,null,0]
[65,"Relé de sobrecarga para minicontator ajustável até 10A, conforme aplicação, com montagem direta nos contatores","Unidade",1,null,0]
[66,"Relé eletrônico/digital monitor de tensão trifásico, com funcionalidade de subtensão, sobretensão, falta de fase e sequência de fase, ajustes através de trimpot no relé, LED indicativo de funcionamento, 380 V, 60 Hz, com 1 contato reversível","Unidade",1,null,0]
[67,"Relé temporizador, alimentação 220V, 1 saída a relé, com função de pulso na energização, ajustável de 1 segundo a 100 horas, ajuste por trimpots no relé","Unidade",1,null,0]
[68,"Borne simples (de passagem) para cabos de 2,5 mm², montagem de trilho DIN","Unidade",2,null,0]
[69,"Separador para borne, montagem em trilho DIN","Unidade",3,null,0]
[70,"Barramento de neutro, na cor azul, para fixação em trilho DIN, fabricado em cobre, com furos e parafusos para fixação, ao menos um furo para o alimentador (até 25 mm²), pré isolado, 10 furos.","Unidade",1,null,0]
[71,"Barramento de terra, na cor verde, para fixação em trilho DIN, fabricado em cobre, com furos e parafusos para fixação, ao menos um furo para o alimentador (até 25 mm²), pré isolado, 10 furos.","Unidade",1,null,0]
[72,"Botão de emergência tipo cogumelo, com trava e retorno com mola, para furos 22mm, 1 NF, 220V, vermelho","Unidade",1,null,0]
[73,"Chave seletora de 3 posições para furos 22mm, 2 NA, completa, 220V","Unidade",1,null,0]
[74,"Sinalizador luminoso para furos de 22 mm, iluminação LED, vermelho, 220V","Unidade",1,null,0]
[75,"Policarbonato compacto, incolor (transparente/cristal), livre de rebarbas, espessura mínima de 2 mm","Metro²",0.24,null,0]
[76,"Barra roscada 1/4\", acabamento zincado","Metro",1,null,0]
[77,"Porca sextavada zincada, 1/4\"","Unidade",16,null,0]
[78,"Arruela zincada, 1/4\"","Unidade",16,null,0]
[79,"Placa de identificação (plaqueta de identificação) fabricada em ABS ou acrílico para painéis elétricos, fixação por adesivo, expessura mínima de 1,5 mmm resistente ao tempo, formato conforme aplicação","cm²",300,null,0]
[80,"Terminal a compressão, tipo pino, 16 mm²","Unidade",2,null,0]
[81,"Terminal a compressão, tipo pino ou garfo, 2,5 mm³","Unidade",50,null,0]
[82,"Abraçadeira de naylon 2,5x100 mm, para organização cabos elétricos","Unidade",10,null,0]
["ALIMENTAÇÃO DO QUADRO E ATERRAMENTO"]
[{"$f":"83","v":83},"Cabo de cobre flexível, classe 4 ou 5, isolação em HEPR, cobertura em PVC-ST2, antichama BWF-B, 0,6/1 kV, seção de 16 mm² (cor preta)","Metro",300,null,0]
[{"$f":"A102+1","v":84},"Cabo de cobre flexível, classe 4 ou 5, isolação em HEPR, cobertura em PVC-ST2, antichama BWF-B, 0,6/1 kV, seção de 16 mm² (azul)","Metro",100,null,0]
[{"$f":"A103+1","v":85},"Cabo de cobre flexível, classe 4 ou 5, isolação em HEPR, cobertura em PVC-ST2, antichama BWF-B, 0,6/1 kV, seção de 16 mm² (verde)","Metro",105,null,0]
[86,"Terminal a compressão, tipo pino, 16 mm²","Unidade",10,null,0]
[87,"Eletroduto corrugado tipo PEAD, 1.1/2\"","Metro",100,null,0]
[88,"Caixa de passagem em concreto 40x40x70 cm","Unidade",5,null,0]
[89,"Cordoalha em cobre nu, 50 mm²","Metro",20,null,0]
[90,"Conector á compressão para aterramento (CABO-CABO)","Unidade",2,null,0]
[91,"Curva longa 90º Galvanizada a fogo, 1.1/2\"","Unidade",1,null,0]
[92,"Eletroduto Galvanizado a Fogo, 1.1/2\"","Metro",1.5,null,0]
[93,"Abraçadeira tipo D, 1 1/2\" e cunha de fixação","Unidade",1,null,0]
[94,"Conector reto com arruela para eletroduto 1.1/2\"","Unidade",1,null,0]
["ALIMENTAÇÃO DO MOTOR"]
[{"$f":"95","v":95},"Cabo de cobre flexível, classe 4 ou 5, isolação em HEPR, cobertura em PVC-ST2, antichama BWF-B, 0,6/1 kV, seção de 2,5 mm² (cor preta)","Metro",30,null,0]
[{"$f":"A115+1","v":96},"Cabo de cobre flexível, classe 4 ou 5, isolação em HEPR, cobertura em PVC-ST2, antichama BWF-B, 0,6/1 kV, seção de 2,5 mm² (azul)","Metro",10,null,0]
[{"$f":"A116+1","v":97},"Cabo de cobre flexível, classe 4 ou 5, isolação em HEPR, cobertura em PVC-ST2, antichama BWF-B, 0,6/1 kV, seção de 2,5 mm² (verde)","Metro",10,null,0]
[98,"Terminal a compressão, tipo pino, 2,5 mm²","Unidade",5,null,0]
[99,"Eletroduto corrugado tipo PEAD, 3/4","Metro",10,null,0]
[100,"Caixa de passagem em concreto 30X30X40 cm","Unidade",5,null,0]
[101,"Eletroduto Galvanizado a Fogo, 3/4\"","Metro",1.5,null,0]
[102,"Conector reto com arruela para eletroduto 3/4\"","Unidade",2,null,0]
[103,"Condulete em Alumínio 3/4\"","Unidade",1,null,0]
[104,"Abraçadeira tipo D, 3/4\" e cunha de fixação","Unidade",1,null,0]
[105,"Tampa cega em alumínio para condulete 3/4\"","Unidade",1,null,0]
["Subtotal-C (MATERIAL ELÉTRICO)",{"$nulls":4},{"$f":"SUM(F68:F125)","v":0}]
["MONTAGEM-PARTE ELÉTRICA - D"]
[{"$f":"106","v":106},"Escavação, regularização do fundo da vala e reaterro com material original isento de pedra e raizes para assentamento de tubo corrugado de passagem elétrica com profundidade conforme NBR 5410","M³",15.4,null,{"$f":"D128*E128","v":0}]
[{"$f":"A128+1","v":107},"ELETROTÉCNICO COM ENCARGOS COMPLEMENTARES","H",4,null,0]
[{"$f":"A129+1","v":108},"ELETRICISTA COM ENCARGOS COMPLEMENTARES","H",8,null,0]
[109,"AUXILIAR DE ELETRICISTA COM ENCARGOS COMPLEMENTARES","H",12,null,0]
["Subtotal-D (MONTAGEM - PARTE ELÉTRICA)",{"$nulls":4},{"$f":"SUM(F128:F131)","v":0}]
["Total (Subtotal-A + Subtotal-B + Subtotal-C+ Subtotal-D))",{"$nulls":4},{"$f":"F61+F65+F126+F132","v":0}]

{"sheet":"3-Poço-2cv-21mca-TO_Preço","index":2,"n_rows":92,"n_cols":6,"rows_kept":92,"cut":false,"hidden":false,"merged":[[5,0,5,5],[6,0,6,5],[7,0,7,5],[9,0,10,0],[9,1,10,1],[9,2,10,2],[9,3,10,3],[9,4,9,5],[11,0,11,5],[23,0,23,4],[24,0,24,5],[27,0,27,4],[28,0,28,5],[29,0,29,5],[85,0,85,5],[90,0,90,4],[91,0,91,4],[84,0,84,4],[57,0,57,5],[68,0,68,5],[77,0,77,5]]}
[null,"                                          MINISTÉRIO DA INTEGRAÇÃO E DO DESENVOLVIMENTO REGIONAL (MIDR)"]
[null,"                                          COMPANHIA DO DESENVOLVIMENTO DOS VALES DO SÃO FRANCISCO E DO PARNAÍBA"]
[null,"                                          ÁREA DE IRRIGAÇÃO E OPERAÇÕES (AI)"]
[]
[]
["PLANILHA ORÇAMENTÁRIA"]
["POÇO-1  - Bomba submersa: 2 CV - Vazão: 15,6 m³/h - Altura manométrica: 21 mca - Altura máxima: 60 m"]
["MATERIAIS, EQUIPAMENTOS E SERVIÇOS"]
[]
["ITEM","DESCRIÇÃO DO MATERIAL","UNID.","QUANT.","VALOR DA PROPOSTA"]
[{"$nulls":4},"PREÇO UNITÁRIO (R$)","TOTAL (R$)"]
["MATERIAL HIDRÁULICO - A"]
[{"$f":"1","v":1},"Motor e bomba submersos trifásicos (380V) potência 2 cv, recalque de 2\", com altura manométrica de 21 metros e vazão de 15,6 m³/h, grau de proteção IP 68, classe de isolamento F, rebobinável, em banho de óleo não tóxico e projetada para poços de 4\".","Unidade",1,null,{"$f":"D13*E13","v":0}]
[{"$f":"A13+1","v":2},"Presilhas de amarração do cabo e da corda","Unidade",6,null,{"$f":"D14*E14","v":0}]
[{"$f":"A14+1","v":3},"União (Luva) - LUVA DE FERRO GALVANIZADO, COM ROSCA BSP, DE 2\" 00003912 (SINAPI)","Unidade",{"$f":"6+5","v":11},null,0]
[4,"Tubo de edução de PVC para poço artesiano 2\", peça 4 metros ABNT NBR 13604:1996","Unidade",{"$f":"6+5","v":11},null,0]
[5,"Tampa do Poço – Tampa Galvanizada em 6” com três (furo central Ø 2\", e dois furos menores para o cabo e corda) 5128 ORSE","Unidade",1,null,0]
[6,"Abraçadeira (Trava) de suporte para poço artesiano – pode ser aço, galvanizado, alumínio para poços de 6 polegadas","Unidade",1,null,0]
[7,"Curva (Longa) - CURVA 90 GRAUS DE FERRO GALVANIZADO, COM ROSCA BSP MACHO, DE 2\"","Unidade",1,null,0]
[8,"Registro de Gaveta REGISTRO GAVETA BRUTO EM LATAO FORJADO, BITOLA 2 \" (REF 1509) (SINAPI)","Unidade",1,null,0]
[9,"NIPLE DE FERRO GALVANIZADO, COM ROSCA BSP, DE 2\" 00004181 SINAPI","Unidade",2,null,0]
[10," Válvula de Retenção VALVULA DE RETENCAO HORIZONTAL, DE BRONZE (PN-25), 2\", 400 PSI, TAMPA DE PORCA DE UNIAO, EXTREMIDADES COM ROSCA 00010408","Unidade",1,null,0]
[11,"CORDA DE POLIAMIDA 12 MM 00038200 SINAPI","Metro",28,null,0]
["Subtotal-A (MATERIAL HIDRÁULICO)",{"$nulls":4},{"$f":"SUM(F13:F23)","v":0}]
["MONTAGEM-PARTE HIDRÁULICA - B"]
[{"$f":"12","v":12},"ENCANADOR OU BOMBEIRO HIDRÁULICO COM ENCARGOS COMPLEMENTARES","HORAS",8,null,{"$f":"D26*E26","v":0}]
[{"$f":"A26+1","v":13},"AUXILIAR DE ENCANADOR OU BOMBEIRO HIDRÁULICO COM ENCARGOS COMPLEMENTARES","HORAS",8,null,0]
["Subtotal-B (MONTAGEM - PARTE HIDRÁULICA)",{"$nulls":4},{"$f":"SUM(F26:F27)","v":0}]
["MATERIAL ELÉTRICO - C"]
["QUADRO DE COMANDO"]
[{"$f":"14","v":14},"Quadro elétrico metálico com placa de montagem, grau de proteção mínimo IP54, dimensões mínimas 400x300x200 mm","Unidade",1,null,{"$f":"D31*E31","v":0}]
[{"$f":"A31+1","v":15},"Canaleta para quadro 30 x 50 mm, fabricada em PVC, tipo semi-aberta.","Metro",0.2,null,0]
[{"$f":"A32+1","v":16},"Canaleta para quadro 50 x 50 mm, fabricada em PVC, tipo semi-aberta.","Metro",0.2,null,0]
[17,"Trilho DIN 35 mm","Metro",0.4,null,0]
[18,"Barramento trifásico isolado (barramento pente), fabricado em cobre, até 63 A, acompanhado de tampas finais, 9 polos","Unidade",0.15,null,0]
[19,"Disjuntor tripolar para trilho DIN (mini disjuntor) para correntes de 13A, curva C, 60 Hz, capacidade de interrupção em curto-circuito 4,5 kA ou superior","Unidade",1,null,0]
[20,"Disjuntor tripolar para trilho DIN (mini disjuntor) para correntes de 10A, curva C, 60 Hz, capacidade de interrupção em curto-circuito 4,5 kA ou superior","Unidade",1,null,0]
[21,"Disjuntor monopolar para trilho DIN (mini disjuntor) para correntes de 6A, curva C, 60 Hz, capacidade de interrupção em curto-circuito 3 kA ou superior","Unidade",1,null,0]
[22,"Minicontator, com capacidade de corrente até 7 A (em reima AC-3), contato auxiliar integrado e bobina em corrente alternada (220 V)","Unidade",1,null,0]
[23,"Relé de sobrecarga para minicontator ajustável até 6,3 A, conforme aplicação, com montagem direta nos contatores","Unidade",1,null,0]
[24,"Relé eletrônico/digital monitor de tensão trifásico, com funcionalidade de subtensão, sobretensão, falta de fase e sequência de fase, ajustes através de trimpot no relé, LED indicativo de funcionamento, 380 V, 60 Hz, com 1 contato reversível","Unidade",1,null,0]
[25,"Relé eletrônico microprocessado para controle e supervisão automática de nível de líquidos, montado em caixa plástica, instalação em trilho DIN. Com modeo de proteção de bomba, 3 entradas (nível inferior, superior e referencia), LED indicativo de eletrodos e relé energizado, 220 V.","Unidade",1,null,0]
[26,"Borne simples (de passagem) para cabos de 2,5 mm², montagem de trilho DIN","Unidade",5,null,0]
[27,"Separador para borne, montagem em trilho DIN","Unidade",3,null,0]
[28,"Barramento de neutro, na cor azul, para fixação em trilho DIN, fabricado em cobre, com furos e parafusos para fixação, ao menos um furo para o alimentador (até 25 mm²), pré isolado, 10 furos.","Unidade",1,null,0]
[29,"Barramento de terra, na cor verde, para fixação em trilho DIN, fabricado em cobre, com furos e parafusos para fixação, ao menos um furo para o alimentador (até 25 mm²), pré isolado, 10 furos.","Unidade",1,null,0]
[30,"Botão de emergência tipo cogumelo, com trava e retorno com mola, para furos 22mm, 1 NF, 220V, vermelho","Unidade",1,null,0]
[31,"Chave seletora de 3 posições para furos 22mm, 2 NA, completa, 220V","Unidade",1,null,0]
[32,"Sinalizador luminoso para furos de 22 mm, iluminação LED, vermelho, 220V","Unidade",1,null,0]
[33,"Sinalizador luminoso para furos de 22 mm, iluminação LED, amarelo, 220V","Unidade",1,null,0]
[34,"Policarbonato compacto, incolor (transparente/cristal), livre de rebarbas, espessura mínima de 2 mm","Metro²",0.12,null,0]
[35,"Barra roscada 1/4\", acabamento zincado","Metro",1,null,0]
[36,"Porca sextavada zincada, 1/4\"","Unidade",16,null,0]
[37,"Arruela zincada, 1/4\"","Unidade",16,null,0]
[38,"Placa de identificação (plaqueta de identificação) fabricada em ABS ou acrílico para painéis elétricos, fixação por adesivo, expessura mínima de 1,5 mmm resistente ao tempo, formato conforme aplicação","cm²",300,null,0]
[39,"Terminal a compressão, tipo pino ou garfo, 2,5 mm³","Unidade",30,null,0]
[40,"Abraçadeira de naylon 2,5x100 mm, para organização cabos elétricos","Unidade",10,null,0]
["ALIMENTAÇÃO DO QUADRO"]
[{"$f":"41","v":41},"Cabo de cobre flexível, classe 4 ou 5, isolação em HEPR, cobertura em PVC-ST2, antichama BWF-B, 0,6/1 kV, seção de 4 mm² (cor preta)","Metro",6,null,0]
[{"$f":"A59+1","v":42},"Cabo de cobre flexível, classe 4 ou 5, isolação em HEPR, cobertura em PVC-ST2, antichama BWF-B, 0,6/1 kV, seção de 4 mm² (azul)","Metro",2,null,0]
[{"$f":"A60+1","v":43},"Cabo de cobre flexível, classe 4 ou 5, isolação em HEPR, cobertura em PVC-ST2, antichama BWF-B, 0,6/1 kV, seção de 4 mm² (verde)","Metro",2,null,0]
[44,"Terminal a compressão, tipo pino, 4 mm²","Unidade",10,null,0]
[45,"Disjuntor tripolar para trilho DIN (mini disjuntor) para correntes de 16A, curva C, 60 Hz, capacidade de interrupção em curto-circuito 4,5 kA ou superior","Unidade",1,null,0]
[46,"Eletroduto Galvanizado a Fogo, 1\"","Metro",2,null,0]
[47,"Conector reto com arruela para eletroduto 1\"","Unidade",3,null,0]
[48,"Condulete em Alumínio 1\"","Unidade",2,null,0]
[49,"Abraçadeira tipo D, 1\" e cunha de fixação","Unidade",3,null,0]
[50,"Tampa cega em alumínio para condulete 1\"","Unidade",2,null,0]
["ALIMENTAÇÃO DO MOTOR"]
[{"$f":"51","v":51},"Cabo de cobre flexível, classe 4 ou 5, isolação em HEPR, multipolar, 5 vias, cobertura em PVC-ST2, antichama BWF-B, 0,6/1 kV, seção de 5x2,5 mm² (cor preta)","Metro",47,null,0]
[{"$f":"A70+1","v":52},"Terminal a compressão, tipo pino, 2,5 mm²","Unidade",5,null,0]
[{"$f":"A71+1","v":53},"Eletroduto Corrugado PEAD 1\"","Metro",20,null,0]
[54,"Conector reto com arruela para eletroduto 1\"","Unidade",3,null,0]
[55,"Condulete em Alumínio 1\"","Unidade",1,null,0]
[56,"Abraçadeira tipo D, 1\" e cunha de fixação","Unidade",1,null,0]
[57,"Tampa cega em alumínio para condulete 1\"","Unidade",1,null,0]
[58,"Caixa de passagem em concreto 30X30X40 cm","Unidade",2,null,0]
["SENSORES DE NÍVEL E BOIAS"]
[{"$f":"59","v":59},"Cabo de cobre flexível, classe 4 ou 5, isolação em HEPR, multipolar, 3 vias, cobertura em PVC-ST2, antichama BWF-B, 0,6/1 kV, seção de 3x2,5 mm² (cor preta)","Metro",47,null,0]
[{"$f":"A79+1","v":60},"Cabo de cobre flexível, classe 4 ou 5, isolação em HEPR, multipolar, 2 vias, cobertura em PVC-ST2, antichama BWF-B, 0,6/1 kV, seção de 2x2,5 mm² (cor preta)","Metro",10,null,0]
[{"$f":"A80+1","v":61},"Eletroduto Corrugado PEAD 3/4\"","Metro",20,null,0]
[62,"Eletrodo de nível, para uso com relé eletrônico e controle de nível/proteção de bombas. Haste em aço inox isolada eletricamente por invólucro de ABS ou superior","Unidade",3,null,0]
[63,"Chave bóia para controle de nível, IP X8, 220 V, isenta de mercúrio","Unidade",1,null,0]
[64,"Terminal a compressão, tipo pino ou garfo, 2,5 mm³","Unidade",5,null,0]
["Subtotal-C (MATERIAL ELÉTRICO)",{"$nulls":4},{"$f":"SUM(F31:F84)","v":0}]
["MONTAGEM-PARTE ELÉTRICA - D"]
[{"$f":"65","v":65},"Escavação, regularização do fundo da vala e reaterro com material original isento de pedra e raizes para assentamento de tubo corrugado de passagem elétrica com profundidade conforme NBR 5410","M³",2.8000000000000003,null,{"$f":"D87*E87","v":0}]
[{"$f":"A87+1","v":66},"ELETROTÉCNICO COM ENCARGOS COMPLEMENTARES","H",3,null,0]
[{"$f":"A88+1","v":67},"ELETRICISTA COM ENCARGOS COMPLEMENTARES","H",8,null,0]
[68,"AUXILIAR DE ELETRICISTA COM ENCARGOS COMPLEMENTARES","H",11,null,0]
["Subtotal-D (MONTAGEM - PARTE ELÉTRICA)",{"$nulls":4},{"$f":"SUM(F87:F90)","v":0}]
["Total (Subtotal-A + Subtotal-B + Subtotal-C+ Subtotal-D))",{"$nulls":4},{"$f":"F24+F28+F85+F91","v":0}]

{"sheet":"4-Poço-3cv-28mca-TO_Preço","index":3,"n_rows":92,"n_cols":6,"rows_kept":92,"cut":false,"hidden":false,"merged":[[5,0,5,5],[6,0,6,5],[7,0,7,5],[11,0,11,5],[23,0,23,4],[9,0,10,0],[9,1,10,1],[9,2,10,2],[9,3,10,3],[9,4,9,5],[24,0,24,5],[27,0,27,4],[28,0,28,5],[91,0,91,4],[29,0,29,1],[57,0,57,1],[68,0,68,1],[77,0,77,1],[84,0,84,4],[85,0,85,5],[90,0,90,4]]}
[null,"                                          MINISTÉRIO DA INTEGRAÇÃO E DO DESENVOLVIMENTO REGIONAL (MIDR)"]
[null,"                                          COMPANHIA DO DESENVOLVIMENTO DOS VALES DO SÃO FRANCISCO E DO PARNAÍBA"]
[null,"                                          ÁREA DE IRRIGAÇÃO E OPERAÇÕES (AI)"]
[]
[]
["PLANILHA ORÇAMENTÁRIA"]
["POÇO-2  - Bomba submersa: 3 CV - Vazão: 15,6 m³/h - Altura manométrica: 28 mca - Altura máxima: 77 m"]
["MATERIAIS, EQUIPAMENTOS E SERVIÇOS"]
[]
["ITEM","DESCRIÇÃO DO MATERIAL","UNID.","QUANT.","VALOR DA PROPOSTA"]
[{"$nulls":4},"PREÇO UNITÁRIO (R$)","TOTAL (R$)"]
["MATERIAL HIDRÁULICO - A"]
[{"$f":"1","v":1},"Motor e bomba submersos trifásicos (380V) potência 3 cv, recalque de 2\", com altura manométrica de 28 metros e vazão de 15,6 m³/h, grau de proteção IP 68, classe de isolamento F, rebobinável, em banho de óleo não tóxico e projetada para poços de 4\"","Unidade",1,null,{"$f":"D13*E13","v":0}]
[{"$f":"A13+1","v":2},"Presilhas de amarração do cabo e da corda","Unidade",7,null,{"$f":"D14*E14","v":0}]
[{"$f":"A14+1","v":3},"União (Luva) - LUVA DE FERRO GALVANIZADO, COM ROSCA BSP, DE 2\" 00003912 (SINAPI)","Unidade",{"$f":"7+5","v":12},null,0]
[4,"Tubo de edução de PVC para poço artesiano 2\", peça 4 metros ABNT NBR 13604:1996","Unidade",{"$f":"7+5","v":12},null,0]
[5,"Tampa do Poço – Tampa Galvanizada em 6” com três (furo central Ø 2\", e dois furos menores para o cabo e corda) 5128 ORSE","Unidade",1,null,0]
[6,"Abraçadeira (Trava) de suporte para poço artesiano – pode ser aço, galvanizado, alumínio para poços de 6 polegadas","Unidade",1,null,0]
[7,"Curva (Longa) - CURVA 90 GRAUS DE FERRO GALVANIZADO, COM ROSCA BSP MACHO, DE 2\"","Unidade",1,null,0]
[8,"Registro de Gaveta REGISTRO GAVETA BRUTO EM LATAO FORJADO, BITOLA 2 \" (REF 1509) (SINAPI)","Unidade",1,null,0]
[9,"NIPLE DE FERRO GALVANIZADO, COM ROSCA BSP, DE 2\" 00004181 SINAPI","Unidade",2,null,0]
[10,"Válvula de Retenção VALVULA DE RETENCAO HORIZONTAL, DE BRONZE (PN-25), 2\", 400 PSI, TAMPA DE PORCA DE UNIAO, EXTREMIDADES COM ROSCA 00010408","Unidade",1,null,0]
[11,"CORDA DE POLIAMIDA 12 MM 00038200 SINAPI","Metro",{"$f":"7*4+4","v":32},null,0]
["Subtotal-A (MATERIAL HIDRÁULICO)",{"$nulls":4},{"$f":"SUM(F13:F23)","v":0}]
["MONTAGEM-PARTE HIDRÁULICA - B"]
[{"$f":"12","v":12},"ENCANADOR OU BOMBEIRO HIDRÁULICO COM ENCARGOS COMPLEMENTARES","HORAS",8,null,{"$f":"D26*E26","v":0}]
[{"$f":"A26+1","v":13},"AUXILIAR DE ENCANADOR OU BOMBEIRO HIDRÁULICO COM ENCARGOS COMPLEMENTARES","HORAS",8,null,0]
["Subtotal-B (MONTAGEM - PARTE HIDRÁULICA)",{"$nulls":4},{"$f":"SUM(F26:F27)","v":0}]
["MATERIAL ELÉTRICO - C"]
["QUADRO DE COMANDO"]
[{"$f":"14","v":14},"Quadro elétrico metálico com placa de montagem, grau de proteção mínimo IP54, dimensões mínimas 400x300x200 mm","Unidade",1,null,{"$f":"D31*E31","v":0}]
[{"$f":"A31+1","v":15},"Canaleta para quadro 30 x 50 mm, fabricada em PVC, tipo semi-aberta.","Metro",0.2,null,0]
[{"$f":"A32+1","v":16},"Canaleta para quadro 50 x 50 mm, fabricada em PVC, tipo semi-aberta.","Metro",0.2,null,0]
[17,"Trilho DIN 35 mm","Metro",0.4,null,0]
[18,"Barramento trifásico isolado (barramento pente), fabricado em cobre, até 63 A, acompanhado de tampas finais, 9 polos","Unidade",0.15,null,0]
[19,"Disjuntor tripolar para trilho DIN (mini disjuntor) para correntes de 13 A, curva C, 60 Hz, capacidade de interrupção em curto-circuito 4,5 kA ou superior","Unidade",1,null,0]
[20,"Disjuntor tripolar para trilho DIN (mini disjuntor) para correntes de 10A, curva C, 60 Hz, capacidade de interrupção em curto-circuito 4,5 kA ou superior","Unidade",1,null,0]
[21,"Disjuntor monopolar para trilho DIN (mini disjuntor) para correntes de 6A, curva C, 60 Hz, capacidade de interrupção em curto-circuito 3 kA ou superior","Unidade",1,null,0]
[22,"Minicontator, com capacidade de corrente até 9 A (em reima AC-3), contato auxiliar integrado e bobina em corrente alternada (220 V)","Unidade",1,null,0]
[23,"Relé de sobrecarga para minicontator ajustável até 8 A, conforme aplicação, com montagem direta nos contatores","Unidade",1,null,0]
[24,"Relé eletrônico/digital monitor de tensão trifásico, com funcionalidade de subtensão, sobretensão, falta de fase e sequência de fase, ajustes através de trimpot no relé, LED indicativo de funcionamento, 380 V, 60 Hz, com 1 contato reversível","Unidade",1,null,0]
[25,"Relé eletrônico microprocessado para controle e supervisão automática de nível de líquidos, montado em caixa plástica, instalação em trilho DIN. Com modeo de proteção de bomba, 3 entradas (nível inferior, superior e referencia), LED indicativo de eletrodos e relé energizado, 220 V.","Unidade",1,null,0]
[26,"Borne simples (de passagem) para cabos de 2,5 mm², montagem de trilho DIN","Unidade",5,null,0]
[27,"Separador para borne, montagem em trilho DIN","Unidade",3,null,0]
[28,"Barramento de neutro, na cor azul, para fixação em trilho DIN, fabricado em cobre, com furos e parafusos para fixação, ao menos um furo para o alimentador (até 25 mm²), pré isolado, 10 furos.","Unidade",1,null,0]
[29,"Barramento de terra, na cor verde, para fixação em trilho DIN, fabricado em cobre, com furos e parafusos para fixação, ao menos um furo para o alimentador (até 25 mm²), pré isolado, 10 furos.","Unidade",1,null,0]
[30,"Botão de emergência tipo cogumelo, com trava e retorno com mola, para furos 22mm, 1 NF, 220V, vermelho","Unidade",1,null,0]
[31,"Chave seletora de 3 posições para furos 22mm, 2 NA, completa, 220V","Unidade",1,null,0]
[32,"Sinalizador luminoso para furos de 22 mm, iluminação LED, vermelho, 220V","Unidade",1,null,0]
[33,"Sinalizador luminoso para furos de 22 mm, iluminação LED, amarelo, 220V","Unidade",1,null,0]
[34,"Policarbonato compacto, incolor (transparente/cristal), livre de rebarbas, espessura mínima de 2 mm","Metro²",0.12,null,0]
[35,"Barra roscada 1/4\", acabamento zincado","Metro",1,null,0]
[36,"Porca sextavada zincada, 1/4\"","Unidade",16,null,0]
[37,"Arruela zincada, 1/4\"","Unidade",16,null,0]
[38,"Placa de identificação (plaqueta de identificação) fabricada em ABS ou acrílico para painéis elétricos, fixação por adesivo, expessura mínima de 1,5 mmm resistente ao tempo, formato conforme aplicação","cm²",300,null,0]
[39,"Terminal a compressão, tipo pino ou garfo, 2,5 mm³","Unidade",30,null,0]
[40,"Abraçadeira de naylon 2,5x100 mm, para organização cabos elétricos","Unidade",10,null,0]
["ALIMENTAÇÃO DO QUADRO"]
[{"$f":"41","v":41},"Cabo de cobre flexível, classe 4 ou 5, isolação em HEPR, cobertura em PVC-ST2, antichama BWF-B, 0,6/1 kV, seção de 4 mm² (cor preta)","Metro",6,null,0]
[{"$f":"A59+1","v":42},"Cabo de cobre flexível, classe 4 ou 5, isolação em HEPR, cobertura em PVC-ST2, antichama BWF-B, 0,6/1 kV, seção de 4 mm² (azul)","Metro",2,null,0]
[{"$f":"A60+1","v":43},"Cabo de cobre flexível, classe 4 ou 5, isolação em HEPR, cobertura em PVC-ST2, antichama BWF-B, 0,6/1 kV, seção de 4 mm² (verde)","Metro",2,null,0]
[44,"Terminal a compressão, tipo pino, 4 mm²","Unidade",10,null,0]
[45,"Disjuntor tripolar para trilho DIN (mini disjuntor) para correntes de 16A, curva C, 60 Hz, capacidade de interrupção em curto-circuito 4,5 kA ou superior","Unidade",1,null,0]
[46,"Eletroduto Galvanizado a Fogo, 1\"","Metro",2,null,0]
[47,"Conector reto com arruela para eletroduto 1\"","Unidade",3,null,0]
[48,"Condulete em Alumínio 1\"","Unidade",2,null,0]
[49,"Abraçadeira tipo D, 1\" e cunha de fixação","Unidade",3,null,0]
[50,"Tampa cega em alumínio para condulete 1\"","Unidade",2,null,0]
["ALIMENTAÇÃO DO MOTOR"]
[{"$f":"51","v":51},"Cabo de cobre flexível, classe 4 ou 5, isolação em HEPR, multipolar, 5 vias, cobertura em PVC-ST2, antichama BWF-B, 0,6/1 kV, seção de 5x2,5 mm² (cor preta)","Metro",54,null,0]
[{"$f":"A70+1","v":52},"Terminal a compressão, tipo pino, 2,5 mm²","Unidade",5,null,0]
[{"$f":"A71+1","v":53},"Eletroduto Corrugado PEAD 1\"","Metro",20,null,0]
[54,"Conector reto com arruela para eletroduto 1\"","Unidade",3,null,0]
[55,"Condulete em Alumínio 1\"","Unidade",1,null,0]
[56,"Abraçadeira tipo D, 1\" e cunha de fixação","Unidade",1,null,0]
[57,"Tampa cega em alumínio para condulete 1\"","Unidade",1,null,0]
[58,"Caixa de passagem em concreto 30X30X40 cm","Unidade",2,null,0]
["SENSORES DE NÍVEL E BÓIAS"]
[{"$f":"59","v":59},"Cabo de cobre flexível, classe 4 ou 5, isolação em HEPR, multipolar, 3 vias, cobertura em PVC-ST2, antichama BWF-B, 0,6/1 kV, seção de 3x2,5 mm² (cor preta)","Metro",54,null,0]
[{"$f":"A79+1","v":60},"Cabo de cobre flexível, classe 4 ou 5, isolação em HEPR, multipolar, 2 vias, cobertura em PVC-ST2, antichama BWF-B, 0,6/1 kV, seção de 2x2,5 mm² (cor preta)","Metro",10,null,0]
[{"$f":"A80+1","v":61},"Eletroduto Corrugado PEAD 3/4\"","Metro",20,null,0]
[62,"Eletrodo de nível, para uso com relé eletrônico e controle de nível/proteção de bombas. Haste em aço inox isolada eletricamente por invólucro de ABS ou superior","Unidade",3,null,0]
[63,"Chave bóia para controle de nível, IP X8, 220 V, isenta de mercúrio","Unidade",1,null,{"$f":"D83*E83","v":0}]
[64,"Terminal a compressão, tipo pino ou garfo, 2,5 mm³","Unidade",5,null,0]
["Subtotal-C (MATERIAL ELÉTRICO)",{"$nulls":4},{"$f":"SUM(F31:F84)","v":0}]
["MONTAGEM-PARTE ELÉTRICA - D"]
[{"$f":"65","v":65},"Escavação, regularização do fundo da vala e reaterro com material original isento de pedra e raizes para assentamento de tubo corrugado de passagem elétrica com profundidade conforme NBR 5410","M³",2.8000000000000003,null,{"$f":"D87*E87","v":0}]
[{"$f":"A87+1","v":66},"ELETROTÉCNICO COM ENCARGOS COMPLEMENTARES","H",3,null,0]
[{"$f":"A88+1","v":67},"ELETRICISTA COM ENCARGOS COMPLEMENTARES","H",8,null,0]
[68,"AUXILIAR DE ELETRICISTA COM ENCARGOS COMPLEMENTARES","H",11,null,0]
["Subtotal-D (MONTAGEM - PARTE ELÉTRICA)",{"$nulls":4},{"$f":"SUM(F87:F90)","v":0}]
["Total (Subtotal-A + Subtotal-B + Subtotal-C+ Subtotal-D))",{"$nulls":4},{"$f":"F24+F28+F85+F91","v":0}]

{"sheet":"5-Poço-5,5cv-56mca-TO_Preço","index":4,"n_rows":93,"n_cols":6,"rows_kept":93,"cut":false,"hidden":false,"merged":[[5,0,5,5],[6,0,6,5],[7,0,7,5],[9,0,10,0],[9,1,10,1],[9,2,10,2],[9,3,10,3],[9,4,9,5],[11,0,11,5],[23,0,23,4],[24,0,24,5],[27,0,27,4],[28,0,28,5],[29,0,29,5],[92,0,92,4],[85,0,85,4],[86,0,86,5],[91,0,91,4],[58,0,58,5],[69,0,69,5],[78,0,78,5]]}
[null,"                                          MINISTÉRIO DA INTEGRAÇÃO E DO DESENVOLVIMENTO REGIONAL (MIDR)"]
[null,"                                          COMPANHIA DO DESENVOLVIMENTO DOS VALES DO SÃO FRANCISCO E DO PARNAÍBA"]
[null,"                                          ÁREA DE IRRIGAÇÃO E OPERAÇÕES (AI)"]
[]
[]
["PLANILHA ORÇAMENTÁRIA"]
["POÇO-3  - Bomba submersa: 5,5 CV - Vazão: 15,6 m³/h - Altura manométrica: 56 mca - Altura máxima: 83 m"]
["MATERIAIS, EQUIPAMENTOS E SERVIÇOS"]
[]
["ITEM","DESCRIÇÃO DO MATERIAL","UNID.","QUANT.","VALOR DA PROPOSTA"]
[{"$nulls":4},"PREÇO UNITÁRIO (R$)","TOTAL (R$)"]
["MATERIAL HIDRÁULICO - A"]
[{"$f":"1","v":1},"Motor e bomba submersos trifásicos (380V) potência 5,5 CV, recalque de 2\" com altura manométrica de 56 metros e vazão de 15,6 m³/h, grau de proteção IP 68, classe de isolamento F, rebobinável, em banho de óleo não tóxico e projetada para poços de 4\"","Unidade",1,null,{"$f":"D13*E13","v":0}]
[{"$f":"A13+1","v":2},"Presilhas de amarração do cabo e da corda","Unidade",14,null,{"$f":"D14*E14","v":0}]
[{"$f":"A14+1","v":3},"União (Luva) - LUVA DE FERRO GALVANIZADO, COM ROSCA BSP, DE 2\" 00003912 (SINAPI)","Unidade",{"$f":"14+5","v":19},null,0]
[4,"Tubo de edução de PVC para poço artesiano 2\", 4 metros (ABNT NBR 13604:1996)","Unidade",{"$f":"14+5","v":19},null,0]
[5,"Tampa do Poço – Tampa Galvanizada em 6” com três (furo central Ø 2\", e dois furos menores para o cabo e corda) 5128 ORSE","Unidade",1,null,0]
[6,"Abraçadeira (Trava) de suporte para poço artesiano – pode ser aço, galvanizado, alumínio para poços de 6 polegadas","Unidade",1,null,0]
[7,"Curva (Longa) - CURVA 90 GRAUS DE FERRO GALVANIZADO, COM ROSCA BSP MACHO, DE 2\"","Unidade",1,null,0]
[8,"Registro de Gaveta REGISTRO GAVETA BRUTO EM LATAO FORJADO, BITOLA 2 \" (REF 1509) (SINAPI)","Unidade",1,null,0]
[9,"NIPLE DE FERRO GALVANIZADO, COM ROSCA BSP, DE 2\" 00004181 SINAPI","Unidade",2,null,0]
[10,"Válvula de Retenção VALVULA DE RETENCAO HORIZONTAL, DE BRONZE (PN-25), 2\", 400 PSI, TAMPA DE PORCA DE UNIAO, EXTREMIDADES COM ROSCA 00010408","Unidade",1,null,0]
[11,"CORDA DE POLIAMIDA 12 MM 00038200 SINAPI","Metro",{"$f":"14*4+4","v":60},null,0]
["Subtotal-A (MATERIAL HIDRÁULICO)",{"$nulls":4},{"$f":"SUM(F13:F23)","v":0}]
["MONTAGEM-PARTE HIDRÁULICA - B"]
[{"$f":"12","v":12},"ENCANADOR OU BOMBEIRO HIDRÁULICO COM ENCARGOS COMPLEMENTARES","HORAS",16,null,{"$f":"D26*E26","v":0}]
[{"$f":"A26+1","v":13},"AUXILIAR DE ENCANADOR OU BOMBEIRO HIDRÁULICO COM ENCARGOS COMPLEMENTARES","HORAS",16,null,0]
["Subtotal-B (MONTAGEM - PARTE HIDRÁULICA)",{"$nulls":4},{"$f":"SUM(F26:F27)","v":0}]
["MATERIAL ELÉTRICO - C"]
["QUADRO DE COMANDO"]
[{"$f":"14","v":14},"Quadro elétrico metálico com placa de montagem, grau de proteção mínimo IP54, dimensões mínimas 400x300x200 mm","Unidade",1,null,{"$f":"D31*E31","v":0}]
[{"$f":"A31+1","v":15},"Canaleta para quadro 30 x 50 mm, fabricada em PVC, tipo semi-aberta.","Metro",0.2,null,0]
[{"$f":"A32+1","v":16},"Canaleta para quadro 50 x 50 mm, fabricada em PVC, tipo semi-aberta.","Metro",0.2,null,0]
[17,"Trilho DIN 35 mm","Metro",0.4,null,0]
[18,"Barramento trifásico isolado (barramento pente), fabricado em cobre, até 63 A, acompanhado de tampas finais, 9 polos","Unidade",0.15,null,0]
[19,"Disjuntor tripolar para trilho DIN (mini disjuntor) para correntes de 16A, curva C, 60 Hz, capacidade de interrupção em curto-circuito 4,5 kA ou superior","Unidade",1,null,0]
[20,"Disjuntor tripolar para trilho DIN (mini disjuntor) para correntes de 13A, curva C, 60 Hz, capacidade de interrupção em curto-circuito 4,5 kA ou superior","Unidade",1,null,0]
[21,"Disjuntor monopolar para trilho DIN (mini disjuntor) para correntes de 6A, curva C, 60 Hz, capacidade de interrupção em curto-circuito 3 kA ou superior","Unidade",1,null,0]
[22,"Minicontator, com capacidade de corrente até 12 A (em reima AC-3), contato auxiliar integrado e bobina em corrente alternada (220 V)","Unidade",1,null,0]
[23,"Relé de sobrecarga para minicontator ajustável até 12,5 A, conforme aplicação, com montagem direta nos contatores","Unidade",1,null,0]
[24,"Relé eletrônico/digital monitor de tensão trifásico, com funcionalidade de subtensão, sobretensão, falta de fase e sequência de fase, ajustes através de trimpot no relé, LED indicativo de funcionamento, 380 V, 60 Hz, com 1 contato reversível","Unidade",1,null,0]
[25,"Relé eletrônico microprocessado para controle e supervisão automática de nível de líquidos, montado em caixa plástica, instalação em trilho DIN. Com modeo de proteção de bomba, 3 entradas (nível inferior, superior e referencia), LED indicativo de eletrodos e relé energizado, 220 V.","Unidade",1,null,0]
[26,"Borne simples (de passagem) para cabos de 2,5 mm², montagem de trilho DIN","Unidade",5,null,0]
[27,"Separador para borne, montagem em trilho DIN","Unidade",3,null,0]
[28,"Barramento de neutro, na cor azul, para fixação em trilho DIN, fabricado em cobre, com furos e parafusos para fixação, ao menos um furo para o alimentador (até 25 mm²), pré isolado, 10 furos.","Unidade",1,null,0]
[29,"Barramento de terra, na cor verde, para fixação em trilho DIN, fabricado em cobre, com furos e parafusos para fixação, ao menos um furo para o alimentador (até 25 mm²), pré isolado, 10 furos.","Unidade",1,null,0]
[30,"Botão de emergência tipo cogumelo, com trava e retorno com mola, para furos 22mm, 1 NF, 220V, vermelho","Unidade",1,null,0]
[31,"Chave seletora de 3 posições para furos 22mm, 2 NA, completa, 220V","Unidade",1,null,0]
[32,"Sinalizador luminoso para furos de 22 mm, iluminação LED, vermelho, 220V","Unidade",1,null,0]
[33,"Sinalizador luminoso para furos de 22 mm, iluminação LED, amarelo, 220V","Unidade",1,null,0]
[34,"Policarbonato compacto, incolor (transparente/cristal), livre de rebarbas, espessura mínima de 2 mm","Metro²",0.12,null,0]
[35,"Barra roscada 1/4\", acabamento zincado","Metro",1,null,0]
[36,"Porca sextavada zincada, 1/4\"","Unidade",16,null,0]
[37,"Arruela zincada, 1/4\"","Unidade",16,null,0]
[38,"Placa de identificação (plaqueta de identificação) fabricada em ABS ou acrílico para painéis elétricos, fixação por adesivo, expessura mínima de 1,5 mmm resistente ao tempo, formato conforme aplicação","cm²",300,null,0]
[39,"Terminal a compressão, tipo pino ou garfo, 2,5 mm³","Unidade",24,null,0]
[40,"Terminal a compressão, tipo pino ou garfo, 4mm³","Unidade",6,null,0]
[41,"Abraçadeira de naylon 2,5x100 mm, para organização cabos elétricos","Unidade",10,null,0]
["ALIMENTAÇÃO DO QUADRO"]
[{"$f":"42","v":42},"Cabo de cobre flexível, classe 4 ou 5, isolação em HEPR, cobertura em PVC-ST2, antichama BWF-B, 0,6/1 kV, seção de 4 mm² (cor preta)","Metro",6,null,0]
[{"$f":"A60+1","v":43},"Cabo de cobre flexível, classe 4 ou 5, isolação em HEPR, cobertura em PVC-ST2, antichama BWF-B, 0,6/1 kV, seção de 4 mm² (azul)","Metro",2,null,0]
[{"$f":"A61+1","v":44},"Cabo de cobre flexível, classe 4 ou 5, isolação em HEPR, cobertura em PVC-ST2, antichama BWF-B, 0,6/1 kV, seção de 4 mm² (verde)","Metro",2,null,0]
[45,"Terminal a compressão, tipo pino, 4 mm²","Unidade",10,null,0]
[46,"Disjuntor tripolar para trilho DIN (mini disjuntor) para correntes de 16A, curva C, 60 Hz, capacidade de interrupção em curto-circuito 4,5 kA ou superior","Unidade",1,null,0]
[47,"Eletroduto Galvanizado a Fogo, 1\"","Metro",2,null,0]
[48,"Conector reto com arruela para eletroduto 1\"","Unidade",3,null,0]
[49,"Condulete em Alumínio 1\"","Unidade",2,null,0]
[50,"Abraçadeira tipo D, 1\" e cunha de fixação","Unidade",3,null,0]
[51,"Tampa cega em alumínio para condulete 1\"","Unidade",2,null,0]
["ALIMENTAÇÃO DO MOTOR"]
[{"$f":"52","v":52},"Cabo de cobre flexível, classe 4 ou 5, isolação em HEPR, multipolar, 5 vias, cobertura em PVC-ST2, antichama BWF-B, 0,6/1 kV, seção de 5x4 mm² (cor preta)","Metro",82,null,0]
[{"$f":"A71+1","v":53},"Terminal a compressão, tipo pino, 4 mm²","Unidade",5,null,0]
[{"$f":"A72+1","v":54},"Eletroduto Corrugado PEAD 1\"","Metro",20,null,0]
[55,"Conector reto com arruela para eletroduto 1\"","Unidade",3,null,0]
[56,"Condulete em Alumínio 1\"","Unidade",1,null,0]
[57,"Abraçadeira tipo D, 1\" e cunha de fixação","Unidade",1,null,0]
[58,"Tampa cega em alumínio para condulete 3/4\"","Unidade",1,null,0]
[59,"Caixa de passagem em concreto 30X30X40 cm","Unidade",2,null,0]
["SENSORES DE NÍVEL E BÓIAS"]
[{"$f":"60","v":60},"Cabo de cobre flexível, classe 4 ou 5, isolação em HEPR, multipolar, 3 vias, cobertura em PVC-ST2, antichama BWF-B, 0,6/1 kV, seção de 3x2,5 mm² (cor preta)","Metro",82,null,0]
[{"$f":"A80+1","v":61},"Cabo de cobre flexível, classe 4 ou 5, isolação em HEPR, multipolar, 2 vias, cobertura em PVC-ST2, antichama BWF-B, 0,6/1 kV, seção de 2x2,5 mm² (cor preta)","Metro",10,null,0]
[{"$f":"A81+1","v":62},"Eletroduto Corrugado PEAD 3/4\"","Metro",20,null,0]
[63,"Eletrodo de nível, para uso com relé eletrônico e controle de nível/proteção de bombas. Haste em aço inox isolada eletricamente por invólucro de ABS ou superior","Unidade",3,null,0]
[64,"Chave bóia para controle de nível, IP X8, 220 V, isenta de mercúrio","Unidade",1,null,0]
[65,"Terminal a compressão, tipo pino ou garfo, 2,5 mm³","Unidade",5,null,0]
["Subtotal-C (MATERIAL ELÉTRICO)",{"$nulls":4},{"$f":"SUM(F31:F85)","v":0}]
["MONTAGEM-PARTE ELÉTRICA - D"]
[{"$f":"66","v":66},"Escavação, regularização do fundo da vala e reaterro com material original isento de pedra e raizes para assentamento de tubo corrugado de passagem elétrica com profundidade conforme NBR 5410","M³",2.8000000000000003,null,{"$f":"D88*E88","v":0}]
[{"$f":"A88+1","v":67},"ELETROTÉCNICO COM ENCARGOS COMPLEMENTARES","H",3,null,0]
[{"$f":"A89+1","v":68},"ELETRICISTA COM ENCARGOS COMPLEMENTARES","H",8,null,0]
[69,"AUXILIAR DE ELETRICISTA COM ENCARGOS COMPLEMENTARES","H",11,null,0]
["Subtotal-D (MONTAGEM - PARTE ELÉTRICA)",{"$nulls":4},{"$f":"SUM(F88:F91)","v":0}]
["Total (Subtotal-A + Subtotal-B + Subtotal-C+ Subtotal-D))",{"$nulls":4},{"$f":"F24+F28+F86+F92","v":0}]

{"sheet":"6-Poço-7,5cv-85mca-TO_Preço","index":5,"n_rows":93,"n_cols":6,"rows_kept":93,"cut":false,"hidden":false,"merged":[[29,0,29,1],[5,0,5,5],[6,0,6,5],[7,0,7,5],[9,0,10,0],[9,1,10,1],[9,2,10,2],[9,3,10,3],[9,4,9,5],[11,0,11,5],[23,0,23,4],[24,0,24,5],[27,0,27,4],[28,0,28,5],[92,0,92,4],[58,0,58,1],[69,0,69,1],[78,0,78,1],[85,0,85,4],[86,0,86,5],[91,0,91,4]]}
[null,"                                          MINISTÉRIO DA INTEGRAÇÃO E DO DESENVOLVIMENTO REGIONAL (MIDR)"]
[null,"                                          COMPANHIA DO DESENVOLVIMENTO DOS VALES DO SÃO FRANCISCO E DO PARNAÍBA"]
[null,"                                          ÁREA DE IRRIGAÇÃO E OPERAÇÕES (AI)"]
[]
[]
["PLANILHA ORÇAMENTÁRIA"]
["POÇO-4  - Bomba submersa: 7,5 CV - Vazão: 15,6 m³/h - Altura manométrica: 85 mca - Altura máxima: 125 m"]
["MATERIAIS, EQUIPAMENTOS E SERVIÇOS"]
[]
["ITEM","DESCRIÇÃO DO MATERIAL","UNID.","QUANT.","VALOR DA PROPOSTA"]
[{"$nulls":4},"PREÇO UNITÁRIO (R$)","TOTAL (R$)"]
["MATERIAL HIDRÁULICO - A"]
[{"$f":"1","v":1},"Motor e bomba submersos trifásicos (380V) potência 7,5 CV, recalque de 2\" com altura manométrica de 85 metros e vazão de 15,2 m³/h, grau de proteção IP 68, classe de isolamento F, rebobinável, em banho de óleo não tóxico e projetada para poços de 4\"","Unidade",1,null,{"$f":"D13*E13","v":0}]
[{"$f":"A13+1","v":2},"Presilhas de amarração do cabo e da corda","Unidade",22,null,{"$f":"D14*E14","v":0}]
[{"$f":"A14+1","v":3},"União (Luva) - LUVA DE FERRO GALVANIZADO, COM ROSCA BSP, DE 2\" 00003912 (SINAPI)","Unidade",{"$f":"22+5","v":27},null,0]
[4,"Tubo de edução de PVC para poço artesiano 2\", 4 metros (ABNT NBR 13604:1996)","Unidade",{"$f":"22+5","v":27},null,0]
[5,"Tampa do Poço – Tampa Galvanizada em 6” com três (furo central Ø 2\", e dois furos menores para o cabo e corda) 5128 ORSE","Unidade",1,null,0]
[6,"Abraçadeira (Trava) de suporte para poço artesiano – pode ser aço, galvanizado, alumínio para poços de 6 polegadas","Unidade",1,null,0]
[7,"Curva (Longa) - CURVA 90 GRAUS DE FERRO GALVANIZADO, COM ROSCA BSP MACHO, DE 2\"","Unidade",1,null,0]
[8,"Registro de Gaveta REGISTRO GAVETA BRUTO EM LATAO FORJADO, BITOLA 2 \" (REF 1509) (SINAPI)","Unidade",1,null,0]
[9,"NIPLE DE FERRO GALVANIZADO, COM ROSCA BSP, DE 2\" 00004181 SINAPI","Unidade",2,null,0]
[10,"Válvula de Retenção VALVULA DE RETENCAO HORIZONTAL, DE BRONZE (PN-25), 2\", 400 PSI, TAMPA DE PORCA DE UNIAO, EXTREMIDADES COM ROSCA 00010408","Unidade",1,null,0]
[11,"CORDA DE POLIAMIDA 12 MM 00038200 SINAPI","Metro",{"$f":"22*4+4","v":92},null,0]
["Subtotal-A (MATERIAL HIDRÁULICO)",{"$nulls":4},{"$f":"SUM(F13:F23)","v":0}]
["MONTAGEM-PARTE HIDRÁULICA - B"]
[{"$f":"12","v":12},"ENCANADOR OU BOMBEIRO HIDRÁULICO COM ENCARGOS COMPLEMENTARES","HORAS",20,null,{"$f":"D26*E26","v":0}]
[{"$f":"A26+1","v":13},"AUXILIAR DE ENCANADOR OU BOMBEIRO HIDRÁULICO COM ENCARGOS COMPLEMENTARES","HORAS",20,null,0]
["Subtotal-B (MONTAGEM - PARTE HIDRÁULICA)",{"$nulls":4},{"$f":"SUM(F26:F27)","v":0}]
["MATERIAL ELÉTRICO - C"]
["QUADRO DE COMANDO"]
[{"$f":"A27+1","v":14},"Quadro elétrico metálico com placa de montagem, grau de proteção mínimo IP54, dimensões mínimas 400x300x200 mm","Unidade",1,null,{"$f":"D31*E31","v":0}]
[{"$f":"A31+1","v":15},"Canaleta para quadro 30 x 50 mm, fabricada em PVC, tipo semi-aberta.","Metro",0.2,null,0]
[{"$f":"A32+1","v":16},"Canaleta para quadro 50 x 50 mm, fabricada em PVC, tipo semi-aberta.","Metro",0.2,null,0]
[17,"Trilho DIN 35 mm","Metro",0.4,null,0]
[18,"Barramento trifásico isolado (barramento pente), fabricado em cobre, até 63 A, acompanhado de tampas finais, 9 polos","Unidade",0.15,null,0]
[19,"Disjuntor tripolar para trilho DIN (mini disjuntor) para correntes de 25A, curva C, 60 Hz, capacidade de interrupção em curto-circuito 4,5 kA ou superior","Unidade",1,null,0]
[20,"Disjuntor tripolar para trilho DIN (mini disjuntor) para correntes de 20 A, curva C, 60 Hz, capacidade de interrupção em curto-circuito 4,5 kA ou superior","Unidade",1,null,0]
[21,"Disjuntor monopolar para trilho DIN (mini disjuntor) para correntes de 6A, curva C, 60 Hz, capacidade de interrupção em curto-circuito 3 kA ou superior","Unidade",1,null,0]
[22,"Minicontator, com capacidade de corrente até 22 A (em reima AC-3), contato auxiliar integrado e bobina em corrente alternada (220 V)","Unidade",1,null,0]
[23,"Relé de sobrecarga para minicontator ajustável até 17 A, conforme aplicação, com montagem direta nos contatores","Unidade",1,null,0]
[24,"Relé eletrônico/digital monitor de tensão trifásico, com funcionalidade de subtensão, sobretensão, falta de fase e sequência de fase, ajustes através de trimpot no relé, LED indicativo de funcionamento, 380 V, 60 Hz, com 1 contato reversível","Unidade",1,null,0]
[25,"Relé eletrônico microprocessado para controle e supervisão automática de nível de líquidos, montado em caixa plástica, instalação em trilho DIN. Com modeo de proteção de bomba, 3 entradas (nível inferior, superior e referencia), LED indicativo de eletrodos e relé energizado, 220 V.","Unidade",1,null,0]
[26,"Borne simples (de passagem) para cabos de 2,5 mm², montagem de trilho DIN","Unidade",5,null,0]
[27,"Separador para borne, montagem em trilho DIN","Unidade",3,null,0]
[28,"Barramento de neutro, na cor azul, para fixação em trilho DIN, fabricado em cobre, com furos e parafusos para fixação, ao menos um furo para o alimentador (até 25 mm²), pré isolado, 10 furos.","Unidade",1,null,0]
[29,"Barramento de terra, na cor verde, para fixação em trilho DIN, fabricado em cobre, com furos e parafusos para fixação, ao menos um furo para o alimentador (até 25 mm²), pré isolado, 10 furos.","Unidade",1,null,0]
[30,"Botão de emergência tipo cogumelo, com trava e retorno com mola, para furos 22mm, 1 NF, 220V, vermelho","Unidade",1,null,0]
[31,"Chave seletora de 3 posições para furos 22mm, 2 NA, completa, 220V","Unidade",1,null,0]
[32,"Sinalizador luminoso para furos de 22 mm, iluminação LED, vermelho, 220V","Unidade",1,null,0]
[33,"Sinalizador luminoso para furos de 22 mm, iluminação LED, amarelo, 220V","Unidade",1,null,0]
[34,"Policarbonato compacto, incolor (transparente/cristal), livre de rebarbas, espessura mínima de 2 mm","Metro²",0.12,null,0]
[35,"Barra roscada 1/4\", acabamento zincado","Metro",1,null,0]
[36,"Porca sextavada zincada, 1/4\"","Unidade",16,null,0]
[37,"Arruela zincada, 1/4\"","Unidade",16,null,0]
[38,"Placa de identificação (plaqueta de identificação) fabricada em ABS ou acrílico para painéis elétricos, fixação por adesivo, expessura mínima de 1,5 mmm resistente ao tempo, formato conforme aplicação","cm²",300,null,0]
[39,"Terminal a compressão, tipo pino ou garfo, 2,5 mm³","Unidade",24,null,0]
[40,"Terminal a compressão, tipo pino ou garfo, 10 mm³","Unidade",6,null,0]
[41,"Abraçadeira de naylon 2,5x100 mm, para organização cabos elétricos","Unidade",10,null,0]
["ALIMENTAÇÃO DO QUADRO"]
[{"$f":"42","v":42},"Cabo de cobre flexível, classe 4 ou 5, isolação em HEPR, cobertura em PVC-ST2, antichama BWF-B, 0,6/1 kV, seção de 10 mm² (cor preta)","Metro",6,null,0]
[{"$f":"A60+1","v":43},"Cabo de cobre flexível, classe 4 ou 5, isolação em HEPR, cobertura em PVC-ST2, antichama BWF-B, 0,6/1 kV, seção de 10 mm² (azul)","Metro",2,null,0]
[{"$f":"A61+1","v":44},"Cabo de cobre flexível, classe 4 ou 5, isolação em HEPR, cobertura em PVC-ST2, antichama BWF-B, 0,6/1 kV, seção de 10 mm² (verde)","Metro",2,null,0]
[45,"Terminal a compressão, tipo pino, 10 mm²","Unidade",10,null,0]
[46,"Disjuntor tripolar para trilho DIN (mini disjuntor) para correntes de 25A, curva C, 60 Hz, capacidade de interrupção em curto-circuito 4,5 kA ou superior","Unidade",1,null,0]
[47,"Eletroduto Galvanizado a Fogo, 1 1/4\"","Metro",2,null,0]
[48,"Conector reto com arruela para eletroduto 1 1/4\"","Unidade",3,null,0]
[49,"Condulete em Alumínio 1 1/4\"","Unidade",2,null,0]
[50,"Abraçadeira tipo D, 1 1/4\" e cunha de fixação","Unidade",3,null,0]
[51,"Tampa cega em alumínio para condulete 1 1/4\"","Unidade",2,null,0]
["ALIMENTAÇÃO DO MOTOR"]
[{"$f":"52","v":52},"Cabo de cobre flexível, classe 4 ou 5, isolação em HEPR, multipolar, 5 vias, cobertura em PVC-ST2, antichama BWF-B, 0,6/1 kV, seção de 5x10 mm² (cor preta)","Metro",111,null,0]
[{"$f":"A71+1","v":53},"Terminal a compressão, tipo pino, 10 mm²","Unidade",5,null,0]
[{"$f":"A72+1","v":54},"Eletroduto Corrugado PEAD 1 1/4\"","Metro",20,null,0]
[55,"Conector reto com arruela para eletroduto 1 1/4\"","Unidade",3,null,0]
[56,"Condulete em Alumínio 1 1/4\"","Unidade",1,null,0]
[57,"Abraçadeira tipo D, 1 1/4\" e cunha de fixação","Unidade",1,null,0]
[58,"Tampa cega em alumínio para condulete 1 1/4\"","Unidade",1,null,0]
[59,"Caixa de passagem em concreto 30X30X40 cm","Unidade",2,null,0]
["SENSORES DE NÍVEL E BÓIAS"]
[{"$f":"60","v":60},"Cabo de cobre flexível, classe 4 ou 5, isolação em HEPR, multipolar, 3 vias, cobertura em PVC-ST2, antichama BWF-B, 0,6/1 kV, seção de 3x2,5 mm² (cor preta)","Metro",111,null,0]
[{"$f":"A80+1","v":61},"Cabo de cobre flexível, classe 4 ou 5, isolação em HEPR, multipolar, 2 vias, cobertura em PVC-ST2, antichama BWF-B, 0,6/1 kV, seção de 2x2,5 mm² (cor preta)","Metro",10,null,0]
[{"$f":"A81+1","v":62},"Eletroduto Corrugado PEAD 3/4\"","Metro",20,null,0]
[63,"Eletrodo de nível, para uso com relé eletrônico e controle de nível/proteção de bombas. Haste em aço inox isolada eletricamente por invólucro de ABS ou superior","Unidade",3,null,0]
[64,"Chave bóia para controle de nível, IP X8, 220 V, isenta de mercúrio","Unidade",1,null,0]
[65,"Terminal a compressão, tipo pino ou garfo, 2,5 mm³","Unidade",5,null,0]
["Subtotal-C (MATERIAL ELÉTRICO)",{"$nulls":4},{"$f":"SUM(F31:F85)","v":0}]
["MONTAGEM-PARTE ELÉTRICA - D"]
[{"$f":"66","v":66},"Escavação, regularização do fundo da vala e reaterro com material original isento de pedra e raizes para assentamento de tubo corrugado de passagem elétrica com profundidade conforme NBR 5410","M³",2.8000000000000003,null,{"$f":"D88*E88","v":0}]
[{"$f":"A88+1","v":67},"ELETROTÉCNICO COM ENCARGOS COMPLEMENTARES","H",3,null,0]
[{"$f":"A89+1","v":68},"ELETRICISTA COM ENCARGOS COMPLEMENTARES","H",8,null,0]
[69,"AUXILIAR DE ELETRICISTA COM ENCARGOS COMPLEMENTARES","H",11,null,0]
["Subtotal-D (MONTAGEM - PARTE ELÉTRICA)",{"$nulls":4},{"$f":"SUM(F88:F91)","v":0}]
["Total (Subtotal-A + Subtotal-B + Subtotal-C+ Subtotal-D))",{"$nulls":4},{"$f":"F24+F28+F86+F92","v":0}]

{"sheet":"7-Fotovoltaica-TO_Preço","index":6,"n_rows":54,"n_cols":6,"rows_kept":54,"cut":false,"hidden":false,"merged":[[48,0,48,4],[49,0,49,5],[52,0,52,4],[53,0,53,4],[11,0,11,5],[12,0,12,5],[19,0,19,5],[24,0,24,5],[29,0,29,5],[38,0,38,5],[5,0,5,5],[6,0,6,5],[7,0,7,5],[9,0,10,0],[9,1,10,1],[9,2,10,2],[9,3,10,3],[9,4,9,5]]}
[null,"                                          MINISTÉRIO DA INTEGRAÇÃO E DO DESENVOLVIMENTO REGIONAL (MIDR)"]
[null,"                                          COMPANHIA DO DESENVOLVIMENTO DOS VALES DO SÃO FRANCISCO E DO PARNAÍBA"]
[null,"                                          ÁREA DE IRRIGAÇÃO E OPERAÇÕES (AI)"]
[]
[]
["PLANILHA ORÇAMENTÁRIA"]
["SISTEMA DE GERAÇÃO FOTOVOLTAICA DISTRIBUÍDA (GDFV)"]
["MATERIAIS, EQUIPAMENTOS E SERVIÇOS"]
[]
["ITEM","DESCRIÇÃO DO MATERIAL","UNID.","QUANT.","VALOR DA PROPOSTA"]
[{"$nulls":4},"PREÇO UNITÁRIO (R$)","TOTAL (R$)"]
["MATERIAL ELÉTRICO - A"]
["ARRANJO FOTOVOLTAICO"]
[{"$f":"1","v":1},"Painel Fotovoltaico Bifacial, 545 Wp STC, estrutura em liga de alumínio anodizado, caixa de junção IP 68, três diodos, eficiência superior a 22%, degradação no primeiro ano inferior a 3%, degradação do ano 2 ao 30 inferior a 0,5% ao ano, 10 anos de garantia, 20 anos de garantia de potência linear.","Unidade",20,null,{"$f":"D14*E14","v":0}]
[{"$f":"A14+1","v":2},"Par (macho e fêmea) de conectores terminais tipo MC4, de 2,5 a 6 mm², 1.500 Vcc, 30 A, IP67, próprio para instalações fotovoltaicas.","Unidade",20,null,{"$f":"D15*E15","v":0}]
[{"$f":"A15+1","v":3},"Estrutura de solo para módulos bifaciais, 20 módulos instalados, pilastra travessa e mão francesa em aço galvanizado a fogo, longarina e acessórios em alumínio. Altura ideal para geração com albedo. Inclui todos os acessórios para correta fixação dos paineis.","Unidade",1,null,0]
[4,"Condutor de 6mm², fios de cobre, têmpera mole, encordoamento classe 5 (extraflexível), isolação em composto termofico livre de alogênio, retardante a chamas, cobertura em composto termofixo livre de halogênio, resistente a UV. Na cor vermelha.","Metro",100,null,0]
[5,"Condutor de 6 mm², fios de cobre, têmpera mole, encordoamento classe 5 (extra flexível), isolação em composto termofixo livre de halogênio, retardante a chamas, cobertura em composto termofixo livre de halogênio, resistente a UV. Na cor preta","Metro",100,null,0]
[6,"Inversor solar fotovoltaico operação on-grid:\nEquipamento com alta eficiência, grau de proteção IP65, instalação em parede, garantia mínima de 5 anos, faixa de operação de até 60ºC, proteções integradas mínimas: sincronismo, subtensão, sobretensão, sub e sobrefrequência, anti-ilhamento, sobrecorrente e relé de tempo de rconexão. \nSaída monofásica (fase, neutro e proteção),até 10.000 W, fator de potência de operação 0,8 adiantado a 0,8 atrasado, 60 Hz, baixo nível de THD;\nEntrada CC com potência de até 11.700 Wp, baixa tensão de partida, no mínimo dois MPPT, 1 string por MPPT; Acesso para monitoramento via Wi-Fi.\n\nDispositivo com selo INMETRO e aprovação da Concessionária local.","Unidade",1,null,0]
["ATERRAMENTO"]
[{"$f":"7","v":7},"Cabo de cobre nu 50mm², composto por 7 fios x Ø 3,00 mm","Metro",50,null,0]
[{"$f":"A21+1","v":8},"Caixa de inspeção para aterramento, em PVC, com tampa","Unidade",4,null,0]
[{"$f":"A22+1","v":9},"Haste para aterramento, cobreada alta camada, Ø 3/4″ x 2,40 m (Ø 17,3 mm – Efetivo)","Unidade",4,null,0]
[10,"Terminal olhal para condutor de 50 mm²","Unidade",3,null,0]
["QUADRO DE PROTEÇÃO CC (STRINGBOX)"]
[{"$f":"11","v":11},"Disjuntor 20A, para corrente contínua, 1.000 Vcc, 4 polos, adequadro para uso em sistemas fotovoltaicos, para instalação em trilho DIN e com jumpers tipo barramento.","Unidade",2,null,0]
[{"$f":"A26+1","v":12},"Dispositivo de proteção contra surtos (DPS), Classe II, apropriado para uso em sistemas fotovoltaicos, 600Vcc, corrente de descarga máxima 40 kA, NÍVEL DE PROEÇÃO 2,7 Kv, com 3 polos (positivo, negativo e terra).","Unidade",2,null,0]
[{"$f":"A27+1","v":13},"Caixa de proteção plástica, de sobrepor, com até 19 polos, trilho DIN, IP 65, proteção UV, e adequada para uso em sistemas fotovoltaicos.","Unidade",1,null,0]
[14,"Barramento de terra, tipo DIN, na cor verde.","Unidade",1,null,0]
["QUADRO DE PROTEÇÃO CA"]
[{"$f":"15","v":15},"Disjuntor monopolar até 40A, termomagnético,  curva C, 3 kA, para trilho DIN","Unidade",1,null,0]
[{"$f":"A31+1","v":16},"Dispositivo de proteção conra surtos (DPS), Classe II, tensão máxima de operação contínua 275 Vca, tensão nominal 240 Vca, corrente de descarga nominal 20 kA, nível de proteção 1,2 kV.","Unidade",2,null,0]
[{"$f":"A32+1","v":17},"Barramento de neutro, tipo DIN, na cor azul.","Unidade",1,null,0]
[18,"Barramento de terra, tipo DIN, na cor verde.","Unidade",1,null,0]
[19,"Caixa de proteção plástica, de sobrepor, com até 6 polos, trilho DIN, IP 65, proteção UV, e adequada para uso em sistemas fotovoltaicos.","Unidade",1,null,0]
[20,"Condutor isolado 450/750V, seção nominal de 16 mm², condutor de cobre têmpera mole, encordoamento classe 4 ou 5, com isolação em composto termoplástico de PVC/A (cor preta)","Metro",1,null,0]
[21,"Condutor isolado 450/750V, seção nominal de 16 mm², condutor de cobre têmpera mole, encordoamento classe 4 ou 5, com isolação em composto termoplástico de PVC/A (cor azul)","Metro",1,null,0]
[22,"Condutor isolado 450/750V, seção nominal de 16 mm², condutor de cobre nu têmpera mole, encordoamento classe 4 ou 5, com isolação em composto termoplástico de PVC/A (cor verde)","Metro",1,null,0]
["QUADRO DE DISTRIBUIÇÃO ELÉTRICA"]
[{"$f":"23","v":23},"Disjuntor monopolar até 50A, termomagnético,  curva C, 3 kA, para trilho DIN","Unidade",1,null,0]
[{"$f":"A40+1","v":24},"Disjuntor tripolar até 70A, termomagnético,  curva C, 4,5 kA, para trilho DIN","Unidade",1,null,0]
[{"$f":"A41+1","v":25},"Disjuntor tripolar até 40A, termomagnético,  curva C, 4,5 kA, para trilho DIN","Unidade",1,null,0]
[26,"Barramento de neutro, tipo DIN, na cor azul.","Unidade",1,null,0]
[27,"Barramento de terra, tipo DIN, na cor verde.","Unidade",1,null,0]
[28,"Caixa de proteção plástica, de sobrepor, com até 10 polos, trilho DIN, IP 65, proteção UV, e adequada para uso em sistemas fotovoltaicos.","Unidade",1,null,0]
[29,"Condutor isolado 450/750V, seção nominal de 16 mm², condutor de cobre nu têmpera mole, encordoamento classe 4 ou 5, com isolação em composto termoplástico de PVC/A (cor preta)","Metro",50,null,0]
[30,"Condutor isolado 450/750V, seção nominal de 16 mm², condutor de cobre nu têmpera mole, encordoamento classe 4 ou 5, com isolação em composto termoplástico de PVC/A (cor azul)","Metro",50,null,0]
[31,"Condutor isolado 450/750V, seção nominal de 16 mm², condutor de cobre nu têmpera mole, encordoamento classe 4 ou 5, com isolação em composto termoplástico de PVC/A (cor verde)","Metro",50,null,0]
["Subtotal-A (MATERIAL ELÉTRICO)",{"$nulls":4},{"$f":"SUM(F14:F48)","v":0}]
["MONTAGEM-PARTE ELÉTRICA - B"]
[{"$f":"32","v":32},"PROJETO EXECUTIVO E APROVAÇÃO NA CONCESSIONÁRIA LOCAL","Unidade",1,null,{"$f":"D51*E51","v":0}]
[{"$f":"A51+1","v":33},"EXECUÇÃO DAS INSTALAÇÕES COM VISTORIA E LIGAÇÃO À REDE","Unidade",1,null,0]
["Subtotal-B (MONTAGEM - PARTE ELÉTRICA)",{"$nulls":4},{"$f":"SUM(F51:F52)","v":0}]
["Total (Subtotal-A + Subtotal-B)",{"$nulls":4},{"$f":"F49+F53","v":0}]